Cogmind - Beta 16.1 @@@ ROGUE MODE // 2026.06.21 @ 02:21:32 Player: H3-MLN Result: Escaped singularity! Performance ------------- Evolutions (9) 4500 Regions Visited (30) 6000 Robots Destroyed (424) 2120 Value Destroyed (25859) 25859 Prototype IDs (384) 7680 Alien Tech Used (9) 1800 Bonus (61497) 61497 TOTAL SCORE: 109456 Bonus ------- High Alert Combat Kills 7626 Follower Combat Kills 4492 Hunted by Unchained 1000 Built PL-3XN's Obliterator 1000 Network Hubs Disabled 600 Registered with UFD 300 Met Optimus in HQ 500 Met Zhirov 300 Met Warlord at Base 500 MAIN.C Attacked Warlord 500 Warlord Defense Kills 1382 Built Enhanced Grunts 300 A7 Reached Mainframe 300 Met R17 at Cetus 500 Found Hidden Lab 3000 Met R17 at Research 2000 Scanned by Researcher 500 Destroyed MAIN.C Guards 500 Met MAIN.C 5000 Destroyed MAIN.C Shell 5000 Destroyed MAIN.C 10000 Met Architect 300 Destroyed A8 300 Destroyed A6 400 Destroyed A5 500 Destroyed Architect 15000 Win 3000 Friendly Fire -3303 Cogmind --------- Core Integrity 672/1600 Matter 265/300 Energy 484/490 System Corruption 1% Temperature Cool (11) Movement Hovering (129) Ox1 Location Near Former Tau Ceti IV Parts ------- > --- POWER (3) -------- Improved Quantum Reactor Zero-point Reactor > --- PROPULSION (8) --- Combat Antigrav System Combat Antigrav System Combat Antigrav System Combat Linear Gravjet Combat Linear Gravjet Concept Gyrokinetic System > --- UTILITY (12) ----- High-capacity Storage Unit Spectral Analyzer Experimental Melee Analysis Suite Concept Melee Reflex Suite Experimental Core Analyzer Concept Core Analysis Suite Femtoactuators Experimental Reaction Control System Experimental Phase Shifter Experimental Core Shielding Improved Weapon Shielding > --- WEAPON (2) ------- Experimental Neutron Missile Launcher Experimental Jetlance > --- INVENTORY (20) --- Cooled Antimatter Reactor Light Quantum Reactor Cooled Antigrav System Concept Chromion Battery (800) Experimental Matter Compressor (500) Experimental Weapon Cycler Femtoactuators Experimental Phase Shifter Graphene Brace AEGIS Remote Shield Concept Plasma Driver Perforator Experimental Jetlance Peak State ------------ > --- POWER ------------ Micro Antimatter Reactor Zero-point Reactor Zero-point Reactor > --- PROPULSION ------- Combat Antigrav System Combat Antigrav System Combat Linear Gravjet Gravjet Array Gravjet Array Concept Gyrokinetic System > --- UTILITY ---------- High-capacity Storage Unit Spectral Analyzer Concept Melee Reflex Suite Experimental Core Analyzer Concept Core Analysis Suite Experimental Weapon Cycler Femtoactuators Experimental Reaction Control System Experimental Phase Shifter Centrium Medium Armor Plating Graphene Brace Concept Impact Drone Bay > --- WEAPON ----------- Perforator > --- INVENTORY -------- Light Quantum Reactor Improved Quantum Reactor Improved Linear Gravjet Combat Antigrav System Combat Linear Gravjet Concept Chromion Battery Experimental Matter Compressor Experimental Melee Analysis Suite Femtoactuators Improved Reaction Control System Advanced Reaction Control System Experimental Phase Shifter Improved Weapon Shielding AEGIS Remote Shield Transdimensional Reconstructor Compact HERF Cannon Concept Plasma Driver Experimental Neutron Missile Launcher Experimental Jetlance Experimental Jetlance [Rating: 262] Favorites ----------- Power Micro Antimatter Reactor Engine Subdweller Power Source Power Core Micro Fission Core Reactor Micro Antimatter Reactor Propulsion Combat Linear Gravjet Treads Advanced Heavy Siege Treads Leg Flexi-carbon Leg Wheel Wheel Hover Unit Combat Linear Gravjet Flight Unit VTOL Module Utility Advanced Hacking Suite Device Advanced Sensor Array Storage High-capacity Storage Unit Processor Advanced Signal Interpreter Hackware Advanced Hacking Suite Protection Centrium Medium Armor Plating Weapon Makeshift Sword Energy Gun Overtuned Pulse Rifle Energy Cannon Subdweller Beam Cannon Ballistic Gun Makeshift Shrapnel Gun Ballistic Cannon Slug Cannon Launcher Micro-nuke Launcher Special Weapon LU-1G1's Laser Shovel Impact Weapon Great Maul Slashing Weapon Makeshift Sword Piercing Weapon Experimental Jetlance Special Melee Weapon Advanced Datajack Build | -11 -10 -10 -9 -9 -6 -6 -6 -6 -6 -5 -5 -5 -5 -4 -4 -4 -4 -4 -4 -4 -3 -3 -3 -3 -2 -2 -2 -1 -1 -1 ------- Run | Yrd Mat Sub Rec Scr Fac Ext Cet Arc Hub Fac Upp Upp Zhi Pro Fac Was Fac Upp Upp War Pro Res Arm Lab Res Qua Frg Acc Com Ac0 Slots Evolved 18 | . . . . . 8 . . . . 2 . . . . 2 . . . . . . 2 . . 2 . . 2 . . Power 2 | . . . . . 1 . . . . . . . . . . . . . . . . . . . 1 . . . . . Propulsion 6 | . . . . . 3 . . . . 1 . . . . . . . . . . . 1 . . 1 . . . . . Utility 10 | . . . . . 4 . . . . 1 . . . . 2 . . . . . . 1 . . . . . 2 . . Weapon . | . . . . . . . . . . . . . . . . . . . . . . . . . . . . . . . Parts Attached 466 | 8 3 25 3 10 30 21 23 3 4 19 4 . 8 4 20 1 24 2 1 19 5 29 13 4 7 23 81 18 41 13 Power 59 | 1 . 3 . 1 4 1 4 . . 3 . . 1 1 3 . 3 . . 2 1 2 2 . 3 1 12 2 8 1 Engine 9 | 1 . 2 . 1 1 . . . . 1 . . . . . . . . . 1 . . . . 1 . . . 1 . Core 10 | . . 1 . . 3 1 . . . 2 . . . 1 . . 1 . . . . . . . . . 1 . . . Reactor 40 | . . . . . . . 4 . . . . . 1 . 3 . 2 . . 1 1 2 2 . 2 1 11 2 7 1 Propulsion 112 | 3 1 5 3 3 12 7 6 1 1 7 . . 4 . 3 . 6 . . 5 . 3 4 . 1 2 21 1 11 2 Treads 17 | 2 . 1 . . 1 3 2 . . . . . . . . . 3 . . . . . . . . 1 . . 4 . Leg 12 | . . . . . 4 . 1 . . . . . . . . . . . . . . . . . . . 3 . 4 . Wheel 16 | 1 1 4 3 1 2 4 . . . . . . . . . . . . . . . . . . . . . . . . Hover 57 | . . . . . 5 . 2 1 1 2 . . 4 . 3 . 3 . . 4 . 3 4 . 1 1 17 1 3 2 Flight 10 | . . . . 2 . . 1 . . 5 . . . . . . . . . 1 . . . . . . 1 . . . Utility 190 | 2 1 6 . 2 9 5 8 1 3 5 4 . 2 2 9 . 8 2 . 7 4 16 1 1 2 16 34 12 20 8 Device 95 | 1 . 2 . 1 4 3 1 . . 2 4 . . 1 5 . 3 1 . 3 3 7 1 1 1 10 22 7 6 6 Storage 19 | 1 1 2 . . 1 . 1 . 1 1 . . 1 . 1 . 2 . . . 1 2 . . . 1 1 . 2 . Processor 23 | . . . . 1 2 . . . . 1 . . . . . . 2 1 . 2 . 2 . . . 2 4 2 3 1 Hackware 15 | . . . . . . 1 2 1 2 1 . . . . 2 . . . . . . 2 . . 1 . . 2 1 . Protection 38 | . . 2 . . 2 1 4 . . . . . 1 1 1 . 1 . . 2 . 3 . . . 3 7 1 8 1 Artifact . | . . . . . . . . . . . . . . . . . . . . . . . . . . . . . . . Weapon 105 | 2 1 11 . 4 5 8 5 1 . 4 . . 1 1 5 1 7 . 1 5 . 8 6 3 1 4 14 3 2 2 Energy Gun 16 | . . . . . 1 3 1 . . . . . . . 1 . . . . . . 1 . 1 . . 6 2 . . Energy Cannon 17 | . . 4 . . . . 2 . . 1 . . . . 2 . 1 . . . . 2 . 1 . . 2 . 1 1 Ballistic Gun 17 | 2 . 3 . 1 3 1 1 . . 2 . . . . . . . . . . . 2 2 . . . . . . . Ballistic Cannon 15 | . . 1 . . . 3 . . . 1 . . . 1 . . . . . . . . 2 . 1 3 1 . 1 1 Launcher 9 | . . 1 . . . . . . . . . . . . 1 1 2 . 1 1 . 1 . . . . . 1 . . Special Weapon 13 | . 1 . . 2 1 1 . . . . . . 1 . . . 1 . . 2 . 1 2 1 . . . . . . Impact Weapon 3 | . . . . . . . . . . . . . . . . . 1 . . . . 1 . . . 1 . . . . Slashing Weapon 5 | . . 2 . . . . 1 . . . . . . . . . . . . . . . . . . . 2 . . . Piercing Weapon 8 | . . . . . . . . . . . . . . . 1 . 2 . . 2 . . . . . . 3 . . . Special Melee Weapon 2 | . . . . 1 . . . 1 . . . . . . . . . . . . . . . . . . . . . . Unidentified Prototypes 103 | . . . . 1 . . 10 . . 1 . . 4 . 4 . 3 . . 9 3 5 4 6 . 14 36 3 . . Corrupted Parts 2 | . . . . . . . . . . . . . . . . . . . . . . . . . . . 1 . 1 . System Corruption 6 | . . . . . . . . . . . . . . . . . . . . . . . . . . . 4 . 2 . Parts Lost 104 | . . 7 1 1 9 8 2 . . 10 . . . . 3 4 7 . 1 . 2 1 . . . . 19 10 8 11 Power 27 | . . 3 . 1 1 1 1 . . 3 . . . . 1 . 1 . 1 . . . . . . . 7 2 3 2 Propulsion 29 | . . 2 . . 5 2 . . . 4 . . . . . 1 3 . . . . 1 . . . . 7 1 1 2 Utility 33 | . . 1 . . 3 1 . . . 1 . . . . 1 3 . . . . 2 . . . . . 5 5 4 7 Weapon 15 | . . 1 1 . . 4 1 . . 2 . . . . 1 . 3 . . . . . . . . . . 2 . . Highest Loss Streak 13 | . . 3 1 1 6 3 1 . . 6 . . . . 1 4 3 . 1 . 2 1 . . . . 13 9 4 6 To Critical Strikes 2 | . . . . . . . 2 . . . . . . . . . . . . . . . . . . . . . . . Average Backups 15 | 2 9 8 28 25 4 8 8 9 8 11 12 11 12 16 17 18 17 17 16 18 18 18 18 12 15 17 18 17 17 18 Power . | . . . 1 1 . . . . . . . . . 1 . 1 . . . . . . . . . . . . . 2 Propulsion 1 | 1 2 . 7 5 . 1 . . . . 2 2 1 1 2 1 1 2 2 . 1 . 1 . . 1 . 1 2 2 Utility 7 | . 1 2 8 8 1 3 3 5 3 3 5 6 7 10 7 7 7 9 10 8 10 11 9 8 10 10 10 8 9 8 Weapon 3 | 1 5 3 8 7 . 1 1 . . 1 . . . . 2 4 3 1 1 5 4 3 4 2 3 4 3 3 2 3 Tool/Special . | . . . . . . . . . . . . . . . . . . . . . . . . . . . . . . . Unused Backups 76 | . 3 4 . 28 1 7 . . . 3 . . . 1 . . 2 1 . 5 . 2 2 . . 1 5 1 5 5 Power 7 | . . . . 4 . . . . . . . . . . . . . 1 . . . . . . . . 1 . . 1 Propulsion 15 | . . . . 4 . 1 . . . 1 . . . . . . . . . . . . 1 . . . 3 . 4 1 Utility 29 | . 1 . . 13 . 2 . . . . . . . 1 . . 2 . . 3 . 2 . . . . 1 . 1 3 Weapon 25 | . 2 4 . 7 1 4 . . . 2 . . . . . . . . . 2 . . 1 . . 1 . 1 . . Tool/Special . | . . . . . . . . . . . . . . . . . . . . . . . . . . . . . . . Average Slot Usage (%) 87 | . 100 86 83 84 82 92 79 85 86 81 87 88 86 90 92 87 86 77 81 87 90 91 94 94 94 93 87 91 90 90 Engine 3 | . 14 11 14 13 2 . . . . 3 5 5 1 . . . . . . 1 1 . . . . . . . . . Core 2 | . . 1 . . 6 12 4 . . 3 5 5 5 5 2 . 1 5 5 2 4 . . . . . . 4 . . Reactor 5 | . . . . . . . 7 13 13 2 . . 3 5 5 10 8 5 3 2 3 8 9 9 11 11 9 8 11 11 Treads 2 | . 14 5 . . 3 2 11 . . . . . . . . . 2 15 15 3 . . . . . . . . 2 . Wheel 7 | . 13 22 28 23 6 23 6 . . . . . . . . . . . . . . . . . . . . . . . Hover 12 | . . . . . 9 . . 19 20 9 5 5 19 29 26 25 19 . . 19 26 24 27 28 30 29 26 23 18 24 Flight 1 | . . . . 4 4 . . . . 10 23 23 7 . . . . . . . . . . . . . . . . . Device 9 | . 14 2 . 1 6 15 10 . 4 8 11 11 10 10 10 8 10 12 13 10 9 9 12 9 15 15 14 21 20 21 Storage 6 | . 14 4 14 11 1 6 6 6 6 5 5 5 5 5 5 5 5 5 5 8 7 4 4 4 4 4 4 4 4 4 Processor 9 | . . . . 1 18 6 6 6 6 9 11 11 11 11 10 7 9 14 15 15 16 17 19 19 17 17 17 18 14 16 Hackware 5 | . . . . . . 2 . 19 20 12 11 11 11 11 20 21 18 10 10 10 10 9 . . 2 4 1 . . . Protection 3 | . . 9 . . 6 1 8 5 1 1 . . . . . . . 1 . . 1 5 10 13 2 1 4 4 7 5 Energy Cannon 3 | . . 13 4 . . . 1 . . . 4 5 . 2 . . 1 4 5 4 . 1 . . . 3 . . 3 . Ballistic Gun 2 | . 27 2 8 11 3 2 1 5 4 . . . . . . . . . . . . . 2 . . . . . . . Slashing Weapon 4 | . . 10 14 13 5 1 1 6 5 4 . . . . . . . . . . . . . . . . . . . . Piercing Weapon 1 | . . . . . . . . . . . . . . . . . 1 . . 1 2 5 . 4 2 . 2 5 3 7 Peak Build Rating 262 | 7 9 18 23 28 63 65 108 104 100 108 73 77 108 109 127 127 137 131 131 154 155 179 178 184 211 221 246 248 255 262 Average Rating 112 | 5 7 15 20 20 48 58 92 99 96 73 72 71 88 102 118 118 123 125 129 138 145 169 168 169 203 206 207 237 244 247 On Entrance 110 | . 7 9 18 22 28 62 64 104 100 98 63 71 72 101 105 119 106 127 130 124 142 146 167 174 184 208 207 227 178 249 Avg Prop Armor Cover (%) 6 | 5 11 2 . 5 7 6 2 10 5 9 8 8 9 . . . 2 . 10 8 . . 4 . . 4 5 . 7 . Naked Turns . | . . . . . . . . . . . . . . . . . . . . . . . . . . . . . . . Heaviest Build 215 | 15 30 215 215 209 36 49 82 48 48 53 40 41 72 78 81 84 102 104 104 119 89 98 97 92 117 118 131 137 160 124 Greatest Support 230 | 40 40 40 36 36 80 80 176 77 61 68 36 36 78 93 101 101 230 230 230 160 96 112 103 103 118 118 149 126 165 124 Greatest Overweight (x) 53 | 1 2 7 7 13 2 4 7 15 . 1 1 2 1 . 1 . 1 . . 1 . 1 1 . . 1 1 1 53 1 Average Overweight (x) 1 | . 1 2 6 4 . 1 . 7 . . . . . . . . . . . . . . . . . . . . . . Largest Inventory Capacity 35 | 8 15 35 35 35 10 10 10 10 10 15 15 15 20 20 20 20 20 20 20 20 20 20 20 20 20 20 20 20 20 20 Average Capacity 18 | 7 12 10 35 30 5 10 10 10 10 14 15 15 18 20 20 20 20 20 20 20 20 20 20 20 20 20 20 20 20 20 Most Carried 35 | 4 15 22 34 35 10 10 10 10 10 15 15 15 20 20 20 20 20 20 20 20 20 20 20 20 20 20 20 20 20 20 Average Carried 17 | 2 9 8 30 26 5 9 9 9 9 13 14 14 15 19 19 19 19 19 19 19 19 19 19 13 19 19 19 19 19 19 Final Capacity 35 | 8 15 35 35 5 10 10 10 10 10 15 15 15 20 20 20 20 20 20 20 20 20 20 20 20 20 20 20 20 20 20 Final Carried 34 | 4 15 22 34 5 10 10 10 10 10 15 15 15 20 20 20 20 20 19 20 20 19 20 19 20 20 20 20 18 20 14 Scrap Suit Usage (%) 1 | . . . . . 1 1 . . . . . . . . . . . . . . . . . . . . . . . . Parts Cannibalized 3 | . . . . . 1 2 . . . . . . . . . . . . . . . . . . . . . . . . Class Distribution -------------------- 18% | Scavenger-Mutant 14% | Hauler-Mutant 8% | Subdweller-Mutant 6% | Trapper-Mutant 6% | Trapper-Scout 6% | Mutant 6% | Hacker-Mutant 5% | Scavenger-Scout 4% | Trapper-Skirmisher 4% | Hacker-Scout 3% | Scavenger-Scrapper Dominant Class ---------------- Mutant | -10/Materials Subdweller-Mutant | -10/Subcaves Hauler-Mutant | -9/Recycling Hauler-Mutant | -9/Scraptown Scavenger-Mutant | -6/Factory Scavenger-Scrapper | -6/Extension Scavenger-Mutant | -6/Cetus Scavenger-Mutant | -6/Archives Scavenger-Mutant | -6/Hub_04(d) Scavenger-Scout | -5/Factory Scavenger-Scout | -5/Upper Caves Scavenger-Scout | -5/Upper Caves Hacker-Scout | -5/Zhirov Scavenger-Scout | -4/Proximity Caves Hacker-Ninja | -4/Factory Hacker-Scout | -4/Waste Hacker-Mutant | -4/Factory Trapper-Mutant | -4/Upper Caves Trapper-Skirmisher | -4/Upper Caves Trapper-Skirmisher | -4/Warlord Trapper-Mutant | -3/Proximity Caves Hacker-Mutant | -3/Research Trapper-Ninja | -3/Armory Trapper-Mutant | -3/Lab Trapper-Ninja | -2/Research Trapper-Scout | -2/Quarantine Trapper-Scout | -2/Protoforge Scavenger-Scout | -1/Access Scavenger-Mutant | -1/Command Scavenger-Gladiator | -1/Access_0 Resources | -11 -10 -10 -9 -9 -6 -6 -6 -6 -6 -5 -5 -5 -5 -4 -4 -4 -4 -4 -4 -4 -3 -3 -3 -3 -2 -2 -2 -1 -1 -1 ----------- Run | Yrd Mat Sub Rec Scr Fac Ext Cet Arc Hub Fac Upp Upp Zhi Pro Fac Was Fac Upp Upp War Pro Res Arm Lab Res Qua Frg Acc Com Ac0 Matter Collected 14480 | 316 124 463 220 130 434 513 235 125 229 589 147 112 100 213 813 . 1486 388 486 885 276 614 859 . 283 373 2420 808 474 365 Remotely . | . . . . . . . . . . . . . . . . . . . . . . . . . . . . . . . Salvage Created 23507 | 104 188 1089 552 84 1120 926 61 289 287 1294 189 112 100 68 540 . 1376 703 485 479 238 922 1278 . 513 2326 3156 1515 2625 888 Parts 1033 | 7 11 53 25 3 51 28 14 21 13 59 . 1 6 3 33 . 74 11 15 17 16 52 75 . 19 98 123 72 79 54 Haulers Intercepted 11 | . 2 . . . . . . . . 2 . . . . 1 . 3 1 . . . 2 . . . . . . . . Recyclers Shooed 5 | . . . . . . 1 . . . 2 . . . . 1 . 1 . . . . . . . . . . . . . Parts Field Recycled . | . . . . . . . . . . . . . . . . . . . . . . . . . . . . . . . Retrieved Matter . | . . . . . . . . . . . . . . . . . . . . . . . . . . . . . . . Parts Self-Destructed 29 | . . 13 . . . . . . . . . . 2 2 . . . 1 7 . 4 . . . . . . . . . Prevented 7 | . . . . . . . . . . . . 1 1 . . . . 5 . . . . . . . . . . . . Parts Restored 1 | . . . . . . . . . . . . . . . 1 . . . . . . . . . . . . . . . Broken 1 | . . . . . . . . . . . . . . . 1 . . . . . . . . . . . . . . . Kills | -11 -10 -10 -9 -9 -6 -6 -6 -6 -6 -5 -5 -5 -5 -4 -4 -4 -4 -4 -4 -4 -3 -3 -3 -3 -2 -2 -2 -1 -1 -1 ------- Run | Yrd Mat Sub Rec Scr Fac Ext Cet Arc Hub Fac Upp Upp Zhi Pro Fac Was Fac Upp Upp War Pro Res Arm Lab Res Qua Frg Acc Com Ac0 Combat Hostiles Destroyed 312 | . 1 24 3 1 8 14 . . 4 8 . . . 2 6 . 18 9 16 12 12 8 29 . 4 30 63 23 8 9 Melee 77 | . . 3 1 1 6 1 . . 1 6 . . . . . . 3 . . . 1 8 3 . 1 1 28 7 3 3 Guns 27 | . 1 1 2 . 2 11 . . . 2 . . . . . . . . . . . . 3 . . . . 5 . . Cannons 76 | . . 15 . . . 2 . . . . . . . 2 2 . 6 1 1 . . . . . 2 15 20 1 3 6 AOE 86 | . . 3 . . . . . . . . . . . . 3 . 5 7 13 12 11 . 19 . . . 7 6 . . Classes Destroyed 33 | 2 4 4 3 1 1 2 . . 1 . . . . . . . . 1 . 3 1 1 1 . . 1 6 1 . . Worker 20 | . 1 . . . 2 . . . 2 4 . . . . 3 . 3 . . . . 3 . . . . . 1 1 . Builder 19 | . . . 2 . 1 . . . . 3 . . . . . . 3 . . . . 2 . . . . 3 5 . . Tunneler 5 | 2 . . . . . . . . . . . . . . . . 1 . . . . 1 . . . . . 1 . . Hauler 11 | . 2 . . . . . . . . 2 . . . . 1 . 3 1 . . . 2 . . . . . . . . Recycler 21 | 1 . . 5 . 5 1 . . . 4 . . . . 1 . 2 . . . . . . . 1 . . 1 . . Minesweeper 1 | . . . . . . . . . . . . . . . . . . 1 . . . . . . . . . . . . Mechanic 1 | . . . . . . . . . . . . . . . . . . . . 1 . . . . . . . . . . Operator 15 | . . . . . . 1 . 9 . . . . . . . . . . . . . 3 . . . 1 . . 1 . Drone 5 | . . . . . . . . . . . . . . . . . . . . . 1 . . . . . 1 3 . . Watcher 17 | . 1 . . . 2 2 . . . 2 . . . . 2 . . . . . . . 2 . 1 2 2 1 . . Swarmer 51 | . . 3 . . 3 . . . . 2 . . . . 3 . 5 . 5 . 10 3 9 . . . 4 4 . . Saboteur 5 | . . . . . . . . . . . . . . . . . . . . 2 . . 1 . . . . 2 . . Grunt 68 | . 1 2 . . . 7 . . 2 1 . . . . . . 2 8 8 6 . . 6 . 2 7 7 7 2 . Brawler 7 | . . . . . . . . . . . . . . . . . . . . 3 . . . . . . 2 2 . . Duelist 9 | . . . 1 . . . . . . . . . . . . . . 1 2 . . . 1 . . . 3 1 . . Protector 3 | . . . . . . . . . 1 . . . . . . . . . . 1 . . . . . . 1 . . . Researcher 3 | . . . . . . . . . . . . . . . . . . . . . . . . . . . 3 . . . Sentry 29 | . . 1 1 . 2 6 . . . . . . . . 1 . . . 1 . 1 2 2 . . 3 7 1 1 . Specialist 2 | . . . . . . . . . . . . . . . . . . . . . . . 2 . . . . . . . Hunter 14 | . . . . . 1 . . . . 3 . . . . . . 2 . . . . . 2 . . 3 2 . 1 . Programmer 48 | . . . 1 . 2 . . . 1 2 . . . 2 2 . 9 . . . . 3 4 . 1 4 15 2 . . Q-Series 1 | . . . . . . . . . . . . . . . . . . . . . . . . . . . . 1 . . Behemoth 2 | . . . . . . 1 . . . . . . . . . . . . . . . . . . 1 . . . . . Armor Guard 2 | . . . . . . . . . . . . . . . . . . . . . . . 2 . . . . . . . Quarantine Guard 12 | . . . . . . . . . . . . . . . . . . . . . . . . . . 12 . . . . M Guard 1 | . . . . . . . . . . . . . . . . . . . . . . . . . . . . . 1 . Enhanced Grunt 4 | . . . . . . . . . . . . . . . . . . . . . . . . . . . . . . 4 Enhanced Hunter 4 | . . . . . . . . . . . . . . . . . . . . . . . . . . . . . . 4 Hotshot 2 | . . . . . . . . . . . . . . . . . . . . . . . . . . . 2 . . . Decapitator 8 | . . . . . . . . . . . . . . . . . . . . . . . . . . . 8 . . . Immortal 4 | . . . . . . . . . . . . . . . . . . . . . . . . . . . 4 . . . Combat Programmer 1 | . . . . . . . . . . . . . . . . . . . . . . . . . . . . . 1 . Striker 1 | . . . . . . . . . . . . . . . . . . . . . . . . . . . 1 . . . Alpha 7 2 | . . . . . . . . . . . . . . . . . . . . . . . . . . . 2 . . . Fortress 1 | . . . . . . . . . . . . . . . . . . . . . . . . . . 1 . . . . V-Series 4 | . . . . . . . . . . . . . . . . . . . . . . . . . . . 4 . . . Artisan 1 | . . 1 . . . . . . . . . . . . . . . . . . . . . . . . . . . . Subdweller 18 | . . 18 . . . . . . . . . . . . . . . . . . . . . . . . . . . . Bolteater 1 | . . . . 1 . . . . . . . . . . . . . . . . . . . . . . . . . . Scrapoid 1 | . . . . . . . . . . . . . . . . . . . . . . 1 . . . . . . . . Decomposer 1 | . . . . . . . . . . . . . . . . . . 1 . . . . . . . . . . . . Packrat 1 | . . . . . . . . . . . 1 . . . . . . . . . . . . . . . . . . . Tinkerer 1 | . . . . . . . . . . . . . . . . . . . . . . . . . . . 1 . . . Best Kill Streak 9 | 1 2 3 2 1 3 6 . 7 3 6 . . . 2 4 . 6 6 6 5 5 3 8 . 3 5 9 6 3 3 Combat Bots Only 8 | . 1 3 1 1 3 6 . . 3 2 . . . 2 3 . 5 5 6 5 5 3 8 . 2 5 7 5 3 3 Max Kills in Single Turn 6 | 1 1 3 1 1 1 1 1 1 3 2 1 . . 1 2 . 4 2 3 4 5 1 4 . 1 4 6 4 1 3 Gunslinging 1 | . . . . . . . . . . 1 . . . . . . . . . . . . . . . . . . . . Exploded 5 | . . 3 . . . . . . . . . . . . 2 . 3 2 3 4 5 . 4 . . . 2 3 . . Melee 2 | . . 1 1 1 1 1 . . 1 1 . . . . . . 1 . . . 1 1 1 . 1 1 1 2 1 1 Uniques/NPCs Destroyed 7 | . . . . . . . 1 . . . . . . . . . . . . . . . . . . . . . 2 4 A7 (-6/Cetus) MAIN.C Shell (-1/Command) MAIN.C (-1/Command) A8 (-1/Access_0) A6 (-1/Access_0) A5 (-1/Access_0) Architect (-1/Access_0) Combat | -11 -10 -10 -9 -9 -6 -6 -6 -6 -6 -5 -5 -5 -5 -4 -4 -4 -4 -4 -4 -4 -3 -3 -3 -3 -2 -2 -2 -1 -1 -1 -------- Run | Yrd Mat Sub Rec Scr Fac Ext Cet Arc Hub Fac Upp Upp Zhi Pro Fac Was Fac Upp Upp War Pro Res Arm Lab Res Qua Frg Acc Com Ac0 Hostile Shots Fired 2005 | . 7 102 9 8 122 207 9 2 64 129 . . . 30 25 . 156 38 38 43 9 60 101 . 15 49 279 149 109 245 Missed 745 | . . 36 1 4 37 70 3 . 29 32 . . . 15 9 . 46 14 7 25 1 20 35 . 6 12 91 53 26 173 Hits 1260 | . 7 66 8 4 85 137 6 2 35 97 . . . 15 16 . 110 24 31 18 8 40 66 . 9 37 188 96 83 72 Melee 22 | . . . 3 . . . . . . . . . . . . . . 2 2 . . . 1 . . . 14 . . . Projectile 1238 | . 7 66 5 4 85 137 6 2 35 97 . . . 15 16 . 110 22 29 18 8 40 65 . 9 37 174 96 83 72 AOE 24 | . . . . . . . . . . 1 . . . . . . . . . . . . . . . . 5 8 9 1 Critical Strikes 80 | . 1 3 . 2 1 1 2 . 3 5 . . . 1 2 . 12 3 3 1 . 2 1 . . 1 23 1 10 2 Actively Blocked 32 | . . . . . . . . . . . . . . . . . . . . . . . 1 . . . 19 . 10 2 Part Disruptions 23 | . . . . . 1 . . . . . . . . . . . 3 . . . . . . . . . 6 12 1 . Damage Taken 26094 | . 88 1444 179 87 978 1730 74 44 489 1767 . . . 303 323 330 1447 342 509 398 266 822 1570 . 105 828 4572 2051 2455 2893 Core 3329 | . . 52 44 65 145 262 . . 98 149 . . . 42 41 61 398 11 25 85 52 139 256 . 6 58 551 254 202 333 Absorbed by Shields 2635 | . . . . . . 114 54 . . . . . . . . . 43 165 232 . . 11 . . . 60 926 754 276 . Reduced by Siege Mode 124 | . . . . . . . . . . . . . . . . . . 66 51 . . . . . . . . . 7 . Redirected to Shielding 463 | . . . . . . . . . . . . . . . . . . . . . . . 47 . . . 228 . 61 127 Ignored by Resistances 3901 | . . . . . . . 50 . . . . . . . . . 1001 . . . . 73 31 . 105 145 1048 357 969 122 Regen/Repaired (Parts) 1513 | . . . . . 9 20 16 168 23 296 . . . . . . 145 . . 1 . . . . . 471 364 . . . Core Remaining (%) 58 | 100 . . . 35 . . . . 40 . . . . 80 . . . . . . 41 . . 90 . . 37 . . 42 Volleys Fired 916 | 6 17 149 10 1 18 72 10 4 3 11 5 5 8 11 32 1 78 37 27 11 5 24 67 . 26 106 63 47 46 16 Largest 2 | 2 2 2 1 1 1 2 1 1 1 2 1 1 1 2 2 1 2 1 1 1 1 1 2 . 1 1 1 1 1 1 Hottest 160 | 40 100 160 80 . 60 160 81 35 60 68 94 94 94 154 115 60 145 105 105 60 60 120 80 . 100 100 140 140 140 100 Shots Fired 1038 | 12 31 155 10 1 18 127 10 4 3 22 6 6 8 13 35 1 100 37 30 11 5 23 70 . 26 106 62 46 44 16 Gun 317 | 12 28 12 6 . 12 107 8 4 1 22 . . . . 10 . . . . . . 12 23 . . . 32 28 . . Cannon 564 | . . 130 4 . . 19 2 . . . 6 6 2 12 23 . 91 28 16 . . 9 8 . 16 94 24 15 44 15 Launcher 94 | . . 7 . . . . . . . . . . . . 2 . 8 9 14 9 5 . 33 . . . 4 2 . 1 Special 63 | . 3 6 . 1 6 1 . . 2 . . . 6 1 . 1 1 . . 2 . 2 6 . 10 12 2 1 . . Kinetic 312 | 12 28 16 6 . 12 51 2 4 1 22 . . . 9 19 . 51 . . . . 8 31 . 6 5 19 3 . 7 Thermal 498 | . 3 132 4 . 3 75 8 . 2 . . . 6 1 10 1 35 28 16 . . 9 . . 10 91 7 13 44 . Explosive 69 | . . 7 . . . . . . . . . . . . 2 . 2 5 14 9 5 . 18 . . . 4 2 . 1 Electromagnetic 127 | . . . . . . . . . . . 6 6 2 3 4 . 11 4 . . . 4 19 . . . 32 28 . 8 Robot Hit Streak 21 | 6 11 19 4 4 6 18 4 2 . 12 6 3 11 2 4 . 5 12 18 6 2 7 9 . 7 19 20 21 16 4 Robot Miss Streak 13 | 2 3 2 2 . 7 4 2 2 . 2 2 3 . 3 3 . 3 3 1 1 1 2 2 . 2 . 3 3 3 13 Penetration Max 4 | . . . . . . 1 . . . 1 . . . 1 . . . . . . . . 1 . . 4 4 1 . 2 Secondary Targets 3 | . . 1 . . . 1 . . . 1 . . . . . . . . . . . . . . . . . . . . Max Gunslinging Chain 1 | . . 1 . . . 1 . . . 1 . . . . . . . . . . . . . . . . . . . . Shots Hit Robots 1018 | 9 20 88 17 3 41 108 22 20 6 58 3 3 11 4 27 . 69 20 15 6 4 39 31 . 11 19 131 50 101 82 Core Hits 651 | 4 11 30 11 1 22 41 4 7 6 28 1 2 3 3 15 . 43 33 27 36 11 20 52 . 8 40 73 38 41 40 Critical Kills 37 | . . 2 . . . 2 . . . 1 . . . . 1 . 2 . 2 . . . 3 . 1 13 . 2 2 6 Critical Parts Destroyed 17 | . . . . . . 1 . . . 4 . . . 1 1 . 4 . . . . 1 2 . . . . . . 3 Critical Strikes 240 | . . 3 . . 2 11 2 . . 8 . . . 1 3 . 6 . 2 . 1 7 6 . 1 22 68 17 37 43 Burn 4 | . . . . . . 2 1 . . . . . . . 1 . . . . . . . . . . . . . . . Meltdown 23 | . . 2 . . . . . . . . . . . . . . 1 . 2 . . . . . 1 13 . 2 2 . Destroy 30 | . . . . . . 4 . . . 5 . . . 1 2 . 5 . . . . . 3 . . . . . . 10 Blast 32 | . . . . . . . . . . . . . . . . . . . . . . . . . . 9 23 . . . Corrupt 3 | . . . . . . . . . . . . . . . . . . . . . . . . . . . 1 2 . . Smash 3 | . . . . . . . . . . . . . . . . . . . . . . 1 2 . . . . . . . Sever 16 | . . 1 . . 2 5 1 . . 3 . . . . . . . . . . . . 1 . . . 3 . . . Impale 117 | . . . . . . . . . . . . . . . . . . . . . . . . . . . 36 13 35 33 Sunder 12 | . . . . . . . . . . . . . . . . . . . . . 1 6 . . . . 5 . . . Melee Attacks 779 | . . 66 15 5 50 27 16 19 26 65 . . 3 . 21 . 34 . . . 2 45 30 16 4 7 120 30 81 97 Kinetic 3 | . . . . . . . . . . . . . . . . . . . . . . . . . . 3 . . . . Impact 41 | . . . . . . . . . . . . . . . . . 1 . . . . 1 27 12 . . . . . . Slashing 297 | . . 66 15 4 50 27 16 18 26 64 . . . . . . . . . . . . . . . . 11 . . . Piercing 339 | . . . . . . . . . . . . . . . 16 . 30 . . . . . . . . . 85 30 81 97 Entropic 85 | . . . . . . . . . . . . . . . . . . . . . 2 44 3 4 4 4 24 . . . Sneak Attacks 114 | . . 1 10 1 9 2 16 11 2 11 . . 3 . 11 . 6 . . . 1 10 . . . . 4 13 3 . Combat Hostiles 8 | . . . . . 1 . . . . . . . . . . . . . . . 1 . . . . . 1 3 2 . Follow-up Attacks 23 | . . . . . . . . . . . . . . . . . . . . . . 2 . . . . 3 1 6 11 Martial Strikes 15 | . . . . . . . . . . . . . . . . . . . . . . . . . . . . 7 1 7 Damage Inflicted 74790 | 106 259 2534 845 42 1543 2766 1033 1457 752 2727 126 104 122 241 1671 . 3980 2321 2333 3317 2063 3401 4725 . 775 4913 11390 7460 8029 3755 Guns 5295 | 106 259 153 104 . 176 1704 140 54 . 657 . . . . 116 . . . . . . 86 66 . . . 862 812 . . Cannons 17682 | . . 1661 . . . 411 . . . . 126 104 74 241 317 . 1936 663 257 . . 172 . . 409 4591 3209 1183 2197 131 Explosions 19904 | . . 397 . . . . . . 400 . . . . . 527 . 1101 1644 2076 3189 1754 . 4028 . . . 1394 3394 . . Melee 31514 | . . 323 724 42 1367 651 893 1403 333 2070 . . . . 711 . 943 . . . 309 3143 468 . 366 316 5925 2071 5832 3624 Ramming 178 | . . . 17 . . . . . 19 . . . . . . . . 14 . 128 . . . . . . . . . . Kinetic 8188 | 106 259 153 104 . 176 853 . 54 . 657 . . . 241 186 . 1068 . . . . 56 66 . 49 960 2940 200 . 60 Thermal 15709 | . . 1661 . . . 1262 140 . . . . . 48 . 116 . 747 885 257 . 84 73 . . 360 3697 460 3722 2197 . Explosive 14260 | . . 397 . . . . . . . . . . . . 443 . 549 867 2076 3189 1670 . 3211 . . . 1203 655 . . Electromagnetic 4838 | . . . . . . . . . 400 . 126 104 74 . 215 . 673 555 . . . 129 817 . . . 862 812 . 71 Impact 557 | . . . . . . . . . . . . . . . . . 100 . . . . 87 370 . . . . . . . Slashing 8249 | . . 323 724 42 1367 651 893 1403 333 2070 . . . . . . . . . . . . 163 . . . 280 . . . Piercing 17022 | . . . . . . . . . . . . . . . 711 . 843 . . . . . . . . . 3941 2071 5832 3624 Entropic 5789 | . . . . . . . . . . . . . . . . . . . . . 309 3056 98 . 366 256 1704 . . . Highest Corruption 24 | . . . . . 4 4 1 . 4 7 7 7 7 9 1 19 24 24 24 24 . 2 . . . . 7 . 13 1 Average Corruption 12 | . . . . . 3 3 1 . 4 5 7 7 7 8 1 8 21 24 24 24 . 1 . . . . 6 . 7 1 Corruption Purged 21 | . . . . . . 3 1 . . . . . . . . . . . . . . 2 . . . . . . 15 . Corruption Blocked 23 | . . . . . . . . . . . . . . . . . . . . . . . 5 . . 1 14 3 . . Effects 375 | . . . . . 6 32 . . 2 22 11 14 5 9 . 4 111 58 62 3 . 2 . . . . 19 . 14 1 Message Errors 96 | . . . . . . 10 . . . 9 2 4 3 2 . 1 27 15 10 2 . 1 . . . . 6 . 3 1 Matter Fused 88 | . . . . . 1 3 . . 2 5 3 5 . 2 . . 24 16 20 . . . . . . . 4 . 3 . Heat Flow Errors 51 | . . . . . 2 7 . . . . 1 1 . 3 . 1 16 5 11 . . . . . . . 3 . 1 . Energy Discharges 40 | . . . . . 1 6 . . . 3 1 . 1 . . . 15 7 2 1 . 1 . . . . 2 . . . Parts Rejected 2 | . . . . . 1 . . . . . . . . . . . 1 . . . . . . . . . . . . . Parts Fused 1 | . . . . . . . . . . . . . . . . . . 1 . . . . . . . . . . . . Data Loss (minor) 36 | . . . . . 1 1 . . . 4 1 1 1 . . 1 12 6 6 . . . . . . . 1 . 1 . Data Loss (major) 21 | . . . . . . . . . . 1 2 1 . 1 . 1 3 2 5 . . . . . . . 3 . 2 . Misfires 14 | . . . . . . 2 . . . . 1 1 . 1 . . 4 1 4 . . . . . . . . . . . Alerts 12 | . . . . . . 1 . . . . . 1 . . . . 1 4 3 . . . . . . . . . 2 . Misdirections 3 | . . . . . . . . . . . . . . . . . 3 . . . . . . . . . . . . . Weapon Failures 11 | . . . . . . 2 . . . . . . . . . . 5 1 1 . . . . . . . . . 2 . Overload Shots . | . . . . . . . . . . . . . . . . . . . . . . . . . . . . . . . Overflow Damage 6445 | . . 65 67 . 151 49 45 500 73 235 60 20 3 6 222 . 398 138 102 63 364 438 268 . 109 137 1168 995 527 242 Projectiles 1066 | . . . . . . . . . . . 60 20 3 6 . . 283 107 7 . . . 45 . 5 18 369 35 108 . Explosions 1089 | . . 37 . . . . . . 8 . . . . . 55 . 8 30 95 58 334 . 116 . . . 57 291 . . Melee 4290 | . . 28 67 . 151 49 45 500 65 235 . . . . 167 . 107 1 . 5 30 438 107 . 104 119 742 669 419 242 Knockbacks 37 | . . . . . . 2 . . 1 . . . . 2 . . 13 1 . 1 . 1 . . . 2 12 1 . 1 Impact 4 | . . . . . . . . . 1 . . . . . . . . 1 . 1 . 1 . . . . . . . . Kinetic 29 | . . . . . . 2 . . . . . . . 1 . . 13 . . . . . . . . 2 9 1 . 1 Secondary 4 | . . . . . . . . . . . . . . 1 . . . . . . . . . . . . 3 . . . Self-Inflicted Damage 1326 | . . 20 8 . . . . . 9 . . . . . . . 130 . 63 64 82 . 24 . . . 215 711 . . Shots 15 | . . 1 . . . . . . . . . . . . . . 6 . 2 . 1 . 1 . . . 3 1 . . Rammed 6 | . . . 1 . . . . . 1 . . . . . . . . 2 . 2 . . . . . . . . . . Targets Rammed 6 | . . . 1 . . . . . 1 . . . . . . . . 2 . 2 . . . . . . . . . . Kicked . | . . . . . . . . . . . . . . . . . . . . . . . . . . . . . . . Crushed . | . . . . . . . . . . . . . . . . . . . . . . . . . . . . . . . Highest Temperature 363 | . 60 304 60 17 273 207 200 40 94 17 157 213 32 181 6 228 265 183 237 14 . 134 25 5 203 313 177 249 363 54 Average Temperature 69 | . 25 56 32 13 124 109 101 11 49 6 40 54 20 63 6 228 65 46 68 9 . 48 9 5 46 68 30 79 138 29 Received Heat Transfer 2623 | . 69 558 9 98 138 168 . . 216 90 . . . . 27 . 206 126 81 93 9 36 198 . . 54 266 89 80 12 Effects 2 | . . . . . . 2 . . . . . . . . . . . . . . . . . . . . . . . . Energy Bleed 2 | . . . . . . 2 . . . . . . . . . . . . . . . . . . . . . . . . Siege Activations 8 | . . . . . . . . . . . . . . . . . . 3 3 . . . . . . . . . 2 . Total Turns 111 | . . . . . . . . . . . . . . . . . . 49 29 . . . . . . . . . 33 . Longest Duration 36 | . . . . . . . . . . . . . . . . . . 36 13 . . . . . . . . . 29 . Martial Activations . | . . . . . . . . . . . . . . . . . . . . . . . . . . . . . . . Shielding Activations . | . . . . . . . . . . . . . . . . . . . . . . . . . . . . . . . Robots Disrupted 3 | . . . . . . . . . . . . . . . . . . . . 1 . . . . . . 2 . . . Combat Hostiles 3 | . . . . . . . . . . . . . . . . . . . . 1 . . . . . . 2 . . . Robots Corrupted 23 | . . . . . . . . . 3 . . . . . 1 . 3 2 . . . 1 4 . . . 7 2 . . Combat Hostiles 21 | . . . . . . . . . 3 . . . . . 1 . 3 1 . . . . 4 . . . 7 2 . . Parts Fried 35 | . . . . . . . . . 5 . . . . . 2 . 3 3 . . . 3 4 . . 1 10 2 . 2 Impact Corruptions 14 | . . . . . . . . . . . . . . . . . 2 1 . 1 . 3 6 . . . 1 . . . Robots Melted 23 | . . 2 . . . . . . . . . . . . . . 1 . 2 . . . . . 1 13 . 2 2 . Combat Hostiles 23 | . . 2 . . . . . . . . . . . . . . 1 . 2 . . . . . 1 13 . 2 2 . Parts Melted 63 | . . 6 . 1 . 8 . . . 2 . . . 1 . . 4 2 . . . . . . 5 26 1 4 3 . Heat Transferred 13047 | . . 2220 . . . 3100 296 . . . . . 150 . 350 . 592 866 259 . 50 50 . . 296 2997 398 592 831 . Parts Sabotaged 1 | . . . . . . . . . . . . . . . . . . . . . . . 1 . . . . . . . Parts Stolen . | . . . . . . . . . . . . . . . . . . . . . . . . . . . . . . . Parts Stripped 18 | . . . . . . . . . . . . . . . . . . . . . . . . . . 18 . . . . Power Chain Reactions 5 | . . . . . . . . . . . . . . . . . 1 1 . . 1 . . . . . 2 . . . Alert | -11 -10 -10 -9 -9 -6 -6 -6 -6 -6 -5 -5 -5 -5 -4 -4 -4 -4 -4 -4 -4 -3 -3 -3 -3 -2 -2 -2 -1 -1 -1 ------- Run | Yrd Mat Sub Rec Scr Fac Ext Cet Arc Hub Fac Upp Upp Zhi Pro Fac Was Fac Upp Upp War Pro Res Arm Lab Res Qua Frg Acc Com Ac0 Maximum Alert Level 5 | . . . . . . . . . 2 2 . . . . 3 . 3 . . . . 1 4 . . 2 5 5 5 . Low Security (%) 47 | 100 100 . 100 . 100 100 100 100 27 . . . . . 46 100 55 . . . . 45 5 . 100 36 . . . . Level 1 13 | . . . . . . . . . 65 77 . . . . 20 . 26 . . . . 54 4 . . 8 14 . . . Level 2 9 | . . . . . . . . . 7 22 . . . . 20 . 17 . . . . . 23 . . 55 8 . . . Level 3 3 | . . . . . . . . . . . . . . . 12 . . . . . . . 47 . . . 13 . . . Level 4 3 | . . . . . . . . . . . . . . . . . . . . . . . 18 . . . 24 18 . . Level 5 22 | . . . . . . . . . . . . . . . . . . . . . . . . . . . 39 81 100 . High Security . | . . . . . . . . . . . . . . . . . . . . . . . . . . . . . . . Max Security . | . . . . . . . . . . . . . . . . . . . . . . . . . . . . . . . Peak Influence 2788 | 5 20 . 103 . 120 182 159 172 651 495 . . . . 900 147 711 . . . . 369 1261 . 53 688 2424 2788 1876 . Initial 1749 | . . . . . . 32 90 18 . 315 . . . . 900 147 51 . . . . . 140 . . 12 348 1452 1749 . Average 419 | . 3 . 22 . 39 66 99 17 213 338 . . . . 278 119 195 . . . . 209 785 . 17 388 1373 1753 1804 . Influence Increases 18629 | 15 61 310 321 . 484 862 330 252 1342 838 10 10 5 60 1727 6 1457 290 360 511 245 741 1459 . 201 1184 2855 1996 505 192 Destroy 0b10 Robot/C 6940 | . 20 120 60 . 200 540 160 80 200 320 . . . 40 200 . 500 180 320 360 220 260 580 . 80 600 1280 460 160 . Destroy 0b10 Robot/NC 710 | 15 20 . 35 . 50 30 10 45 20 100 10 10 5 . 40 . 65 10 . 10 5 55 10 . 10 15 50 45 45 . Destroy Leader 1190 | . 6 10 . . 74 76 . . 60 68 . . . 20 48 . 116 10 40 . 20 64 94 . 22 184 164 92 22 . Allied During Kill 928 | . . . . . 17 125 133 94 75 79 . . . . 63 . 82 . . 126 . 82 3 . . . . 24 25 . Trap Triggered on 0b10 90 | . . . . . . . . . . 20 . . . . 40 . . . . . . . . . . . . 30 . . Successful Hack 601 | . . . 11 . 16 17 . . 78 42 . . . . 68 . 31 . . . . 85 5 . 25 28 57 117 21 . Select Force Hacks 360 | . . . 210 . . . . . 100 . . . . . . . 50 . . . . . . . . . . . . . Disable Machine 1560 | . 15 . . . 15 15 15 30 240 45 . . . . 75 . 210 . . . . 30 270 . . 120 240 105 75 60 Destroy Structure 3430 | . . . 5 . 7 14 12 3 149 44 . . . . 158 6 178 . . . . 60 332 . 49 162 974 1033 112 132 Advance Influence 900 | . . . . . . . . . . . . . . . 900 . . . . . . . . . . . . . . . Partial Spotted 330 | . . . . . . 15 . . 15 15 . . . . 75 . 15 . . . . 60 15 . 15 45 30 . 30 . Lose Combat Pursuer 1590 | . . 180 . . 105 30 . . 405 105 . . . . 60 . 210 90 . 15 . 45 150 . . 30 60 90 15 . Influence Decreases 18563 | 15 61 310 321 . 417 767 446 298 699 1130 345 26 5 60 1307 353 831 729 534 594 248 473 474 1253 178 588 1053 1683 1295 2070 Entered New Map 6852 | . . . . . . 35 72 28 . 328 131 4 . . . 273 22 259 50 86 3 . 128 1253 . 11 271 969 985 1944 Time Decay 8210 | 15 61 260 311 . 327 497 254 250 269 452 214 22 5 60 427 30 609 470 474 268 225 403 326 . 168 577 592 534 110 . Lost Part 942 | . . 50 10 . 90 56 20 . . 100 . . . . 30 40 70 . 10 . 20 10 . . . . 190 100 80 66 Lost Ally 1269 | . . . . . . 179 100 20 40 100 . . . . 100 10 130 . . 240 . 60 20 . 10 . . 80 120 60 Purge Threat 1290 | . . . . . . . . . 390 150 . . . . 750 . . . . . . . . . . . . . . . Squads Dispatched 107 | . 2 . . . 4 3 . . 17 10 . . . . 6 . 12 . . . . 7 8 . 2 6 10 19 1 . Investigation 30 | . 2 . . . 1 1 . . 9 3 . . . . 1 . 5 . . . . 3 1 . 1 2 . 1 . . Extermination 30 | . . . . . 2 . . . 2 3 . . . . 3 . 6 . . . . 1 2 . 1 1 4 4 1 . Reinforcement 17 | . . . . . . 2 . . 3 4 . . . . 1 . 1 . . . . 3 2 . . . 1 . . . Assault 20 | . . . . . . . . . . . . . . . 1 . . . . . . . 3 . . . 5 11 . . Garrison 10 | . . . . . 1 . . . 3 . . . . . . . . . . . . . . . . 3 . 3 . . Intercept . | . . . . . . . . . . . . . . . . . . . . . . . . . . . . . . . Searches Triggered . | . . . . . . . . . . . . . . . . . . . . . . . . . . . . . . . Unchained Authorized 1 | . . . . . . . . . . . . . . . . . . . . . . . . . . . . 1 . . Construction Impeded 5 | . . . . . . 1 . . . 2 . . . . 1 . . . . . . 1 . . . . . . . . Haulers Reinforced 1 | . . . . . . . . . . 1 . . . . . . . . . . . . . . . . . . . . Active Scanning Responses . | . . . . . . . . . . . . . . . . . . . . . . . . . . . . . . . Cargo Convoy Interrupts . | . . . . . . . . . . . . . . . . . . . . . . . . . . . . . . . Stealth | -11 -10 -10 -9 -9 -6 -6 -6 -6 -6 -5 -5 -5 -5 -4 -4 -4 -4 -4 -4 -4 -3 -3 -3 -3 -2 -2 -2 -1 -1 -1 --------- Run | Yrd Mat Sub Rec Scr Fac Ext Cet Arc Hub Fac Upp Upp Zhi Pro Fac Was Fac Upp Upp War Pro Res Arm Lab Res Qua Frg Acc Com Ac0 Distress Signals 49 | . 1 . . . . 3 2 1 1 1 . . . 1 3 . 4 . . . . 6 1 . . . 2 . 23 . Communications Jammed 83 | . . . . . . . . . . . . . . . 41 . 28 . . . . 10 . . . 4 . . . . Distress Signals 82 | . . . . . . . . . . . . . . . 40 . 28 . . . . 10 . . . 4 . . . . Times Spotted 618 | . 12 31 3 19 21 32 8 8 38 28 . . . 6 28 6 51 13 14 46 6 26 37 . 3 19 70 35 22 36 Peak Tracking Total 22 | . 3 6 1 6 3 7 5 1 16 6 . . . 4 8 6 6 5 5 22 5 6 5 . 2 5 9 17 5 9 Tactical Retreats 59 | . . 2 . 1 5 2 . . 8 3 . . . . 3 . 7 2 . 1 . 2 6 . . 2 4 5 3 3 Traps | -11 -10 -10 -9 -9 -6 -6 -6 -6 -6 -5 -5 -5 -5 -4 -4 -4 -4 -4 -4 -4 -3 -3 -3 -3 -2 -2 -2 -1 -1 -1 ------- Run | Yrd Mat Sub Rec Scr Fac Ext Cet Arc Hub Fac Upp Upp Zhi Pro Fac Was Fac Upp Upp War Pro Res Arm Lab Res Qua Frg Acc Com Ac0 Traps Triggered 23 | . . 2 . . . . . . . 2 . . . . 1 . 2 . . . . 1 5 . . 2 5 . 3 . Indirectly 2 | . . . . . . . . . . . . . . . . . . . . . . . 2 . . . . . . . Trap Hack Attempts 79 | . . . . . . . . . . 41 . . . . 38 . . . . . . . . . . . . . . . Triggered . | . . . . . . . . . . . . . . . . . . . . . . . . . . . . . . . Disarmed 1 | . . . . . . . . . . . . . . . 1 . . . . . . . . . . . . . . . Reprogrammed 21 | . . . . . . . . . . 6 . . . . 15 . . . . . . . . . . . . . . . Reused 9 | . . . . . . . . . . 2 . . . . 4 . . . . . . . . . . . . 3 . . Traps Extracted 24 | . . . . . . . . . . 2 4 3 . . 15 . . . . . . . . . . . . . . . Installed 22 | . . . . . . . . . . 2 . . . . 11 . . . . . . . . . 6 . . 3 . . Triggered 9 | . . . . . . . . . . 2 . . . . 4 . . . . . . . . . . . . 3 . . Most Traps Carried 14 | . . . . . . . . . . 2 4 7 7 7 9 9 9 14 14 14 14 14 14 14 14 14 8 8 . . Objects Rigged 2 | . . . . . . . . . 1 . . . . . 1 . . . . . . . . . . . . . . . Exploded 2 | . . . . . . . . . 1 . . . . . 1 . . . . . . . . . . . . . . . Machines | -11 -10 -10 -9 -9 -6 -6 -6 -6 -6 -5 -5 -5 -5 -4 -4 -4 -4 -4 -4 -4 -3 -3 -3 -3 -2 -2 -2 -1 -1 -1 ---------- Run | Yrd Mat Sub Rec Scr Fac Ext Cet Arc Hub Fac Upp Upp Zhi Pro Fac Was Fac Upp Upp War Pro Res Arm Lab Res Qua Frg Acc Com Ac0 Machines Disabled 136 | . 1 4 . 3 1 3 2 2 16 3 . . . . 5 . 14 . . 2 . 2 19 3 1 8 31 7 5 4 Max in Single Turn 12 | . 1 3 . 1 1 . 1 1 12 . . . . . 2 . 1 . . 1 . 1 2 1 1 2 3 3 1 1 Garrison Access 7 | . . . . . . . . . 1 2 . . . . . . . . . . . 2 . . 1 1 . . . . Network Hub 3 | . . . . . . . . . 3 . . . . . . . . . . . . . . . . . . . . . Machines Repaired . | . . . . . . . . . . . . . . . . . . . . . . . . . . . . . . . Machines Dismantled . | . . . . . . . . . . . . . . . . . . . . . . . . . . . . . . . Machines Sabotaged 2 | . . . . . . . . . 2 . . . . . . . . . . . . . . . . . . . . . Overloaded Fab Kills 1 | . . . . . . . . . . . . . . . . . 1 . . . . . . . . . . . . . Hacking | -11 -10 -10 -9 -9 -6 -6 -6 -6 -6 -5 -5 -5 -5 -4 -4 -4 -4 -4 -4 -4 -3 -3 -3 -3 -2 -2 -2 -1 -1 -1 --------- Run | Yrd Mat Sub Rec Scr Fac Ext Cet Arc Hub Fac Upp Upp Zhi Pro Fac Was Fac Upp Upp War Pro Res Arm Lab Res Qua Frg Acc Com Ac0 Machines Accessed 122 | . 3 2 13 1 6 9 . . 13 11 . 1 4 1 10 . 10 . 1 1 . 10 3 . 4 4 4 10 1 . Terminals 63 | . 3 . 6 . . 9 . . 11 5 . . . 1 8 . 4 . . . . 2 2 . 2 2 3 4 1 . Fabricators 7 | . . . . . 1 . . . . 2 . . . . . . 2 . . . . . 1 . . . . 1 . . Repair Stations 4 | . . . . . . . . . . 1 . . . . . . 1 . . . . 1 . . . 1 . . . . Recycling Units 17 | . . . 7 . 2 . . . . 1 . . . . 1 . 2 . . . . 2 . . . . . 2 . . Scanalyzers 10 | . . . . . 2 . . . . . . . . . 1 . 1 . . . . 3 . . 1 . 1 1 . . Garrison Access 11 | . . . . . 1 . . . 2 2 . . . . . . . . . . . 2 . . 1 1 . 2 . . Total Hacks 397 | . 7 5 33 5 12 14 . . 47 37 . 1 17 1 49 . 44 . 1 1 . 38 9 . 12 12 13 36 3 . Successful 225 | . 1 5 21 5 6 4 . . 23 30 . 1 17 1 35 . 35 . 1 1 . 14 3 . 5 4 4 8 1 . Failed 169 | . 5 . 12 . 6 10 . . 24 7 . . . . 13 . 9 . . . . 23 6 . 7 8 9 28 2 . Catastrophic 39 | . 1 . 1 . 1 4 . . 1 1 . . . . 2 . 1 . . . . 6 1 . 2 1 2 14 1 . Database Lockouts 3 | . 1 . . . . . . . . . . . . . 1 . . . . . . 1 . . . . . . . . Manual 173 | . 4 . 25 . 2 4 1 . 28 21 . . . . 26 . 24 . . . . 12 3 . 4 2 7 8 2 . Terminals 224 | . 7 . 18 . . 14 . . 41 24 . . . 1 39 . 23 . . . . 8 6 . 5 2 11 22 3 . Fabricators 19 | . . . . . 1 . . . . 6 . . . . . . 8 . . . . . 3 . . . . 1 . . Repair Stations 15 | . . . . . . . . . . 2 . . . . . . 5 . . . . 1 . . . 7 . . . . Recycling Units 39 | . . . 15 . 4 . . . . 2 . . . . 4 . 6 . . . . 5 . . . . . 3 . . Scanalyzers 47 | . . . . . 5 . . . . . . . . . 6 . 2 . . . . 22 . . 5 . 2 5 . . Garrison Access 23 | . . . . . 2 . . . 6 3 . . . . . . . . . . . 2 . . 2 3 . 5 . . Terminal Hacks 102 | . 1 5 1 5 . 4 . . 14 11 . 1 17 1 17 . 13 . 1 1 . 1 1 . 2 . 3 3 . . Record 15 | . . 4 . 5 . . . . . . . . 5 1 . . . . . . . . . . . . . . . . Part Schematic 8 | . 1 . . . . . . . 1 . . . 4 . 1 . 1 . . . . . . . . . . . . . Robot Schematic 1 | . . . . . . . . . . . . . . . 1 . . . . . . . . . . . . . . . Robot Analysis 7 | . . . . . . . . . 2 . . . 4 . 1 . . . . . . . . . . . . . . . Prototype ID Bank 5 | . . . . . . . . . 1 . . . 4 . . . . . . . . . . . . . . . . . Open Door 6 | . . . . . . 3 . . . . . 1 . . . . . . 1 1 . . . . . . . . . . Level Access Points 1 | . . . . . . . . . 1 . . . . . . . . . . . . . . . . . . . . . Branch Access Points 4 | . . . . . . . . . . 1 . . . . 1 . 1 . . . . 1 . . . . . . . . Emergency Access Points 3 | . . . . . . . . . 1 . . . . . . . . . . . . . . . . . 1 1 . . Machine Index 4 | . . . . . . . . . 1 . . . . . 1 . . . . . . . . . . . 1 1 . . Terminal Index 3 | . . . 1 . . . . . . 1 . . . . . . 1 . . . . . . . . . . . . . Fabricator Index 1 | . . . . . . . . . . . . . . . 1 . . . . . . . . . . . . . . . Garrison Index 1 | . . . . . . . . . . . . . . . . . 1 . . . . . . . . . . . . . Alert Level 2 | . . . . . . . . . . 1 . . . . 1 . . . . . . . . . . . . . . . Unreport Threat 9 | . . . . . . . . . 3 1 . . . . 5 . . . . . . . . . . . . . . . Locate Traps 6 | . . . . . . 1 . . 1 2 . . . . . . 1 . . . . . . . . . 1 . . . Reprogram Traps 1 | . . . . . . . . . . 1 . . . . . . . . . . . . . . . . . . . . Investigation Status 1 | . . . . . . . . . . 1 . . . . . . . . . . . . . . . . . . . . Recall Investigation 3 | . . . . . . . . . . 1 . . . . . . 2 . . . . . . . . . . . . . Recall Extermination 3 | . . . . . . . . . . . . . . . 1 . 2 . . . . . . . . . . . . . Hauler Manifests 3 | . . . . . . . . . . 1 . . . . 1 . 1 . . . . . . . . . . . . . Registered Components 2 | . . . . . . . . . . 1 . . . . 1 . . . . . . . . . . . . . . . Registered Prototypes 2 | . . . . . . . . . . . . . . . 1 . 1 . . . . . . . . . . . . . Zone Layout 10 | . . . . . . . . . 3 . . . . . 1 . 2 . . . . . 1 . 2 . . 1 . . Proto ID Catalog 1 | . . 1 . . . . . . . . . . . . . . . . . . . . . . . . . . . . Fabricator Hacks 7 | . . . . . . . . . . 3 . . . . . . 3 . . . . . 1 . . . . . . . Network Status 2 | . . . . . . . . . . . . . . . . . 1 . . . . . 1 . . . . . . . Load Schematic 3 | . . . . . . . . . . 2 . . . . . . 1 . . . . . . . . . . . . . Build 2 | . . . . . . . . . . 1 . . . . . . 1 . . . . . . . . . . . . . Repair Station Hacks 7 | . . . . . . . . . . 2 . . . . . . 2 . . . . 1 . . . 2 . . . . Scan Component 4 | . . . . . . . . . . 1 . . . . . . 1 . . . . 1 . . . 1 . . . . Repair 3 | . . . . . . . . . . 1 . . . . . . 1 . . . . . . . . 1 . . . . Recycling Unit Hacks 15 | . . . 6 . 1 . . . . 1 . . . . 3 . 3 . . . . . . . . . . 1 . . Process 1 | . . . . . . . . . . . . . . . 1 . . . . . . . . . . . . . . . Report Inventory 11 | . . . 5 . 1 . . . . 1 . . . . 1 . 2 . . . . . . . . . . 1 . . Retrieve Matter 1 | . . . . . . . . . . . . . . . 1 . . . . . . . . . . . . . . . Retrieve Components 2 | . . . 1 . . . . . . . . . . . . . 1 . . . . . . . . . . . . . Scanalyzer 22 | . . . . . 4 . . . . . . . . . 5 . 2 . . . . 9 . . 1 . . 1 . . Insert Component 5 | . . . . . 1 . . . . . . . . . 1 . . . . . . 3 . . . . . . . . Analyze 3 | . . . . . . . . . . . . . . . 1 . . . . . . 2 . . . . . . . . Retrieve Study 14 | . . . . . 3 . . . . . . . . . 3 . 2 . . . . 4 . . 1 . . 1 . . Garrison Access Hacks 7 | . . . . . . . . . 1 2 . . . . . . . . . . . 2 . . 1 1 . . . . Seal Access 7 | . . . . . . . . . 1 2 . . . . . . . . . . . 2 . . 1 1 . . . . Unauthorized Hacks 65 | . . . 14 . 1 . . . 8 11 . . . . 10 . 12 . . . . 1 1 . 1 1 1 3 1 . Terminals 44 | . . . 7 . . . . . 8 8 . . . . 9 . 7 . . . . . 1 . 1 1 . 1 1 . Track 3 | . . . . . . . . . . 1 . . . . . . . . . . . . 1 . . . . . 1 . Assimilate 5 | . . . . . . . . . . . . . . . 2 . 2 . . . . . . . 1 . . . . . Botnet 5 | . . . 2 . . . . . . 1 . . . . . . 1 . . . . . . . . . . 1 . . Detonate 2 | . . . . . . . . . 1 . . . . . 1 . . . . . . . . . . . . . . . Disrupt 1 | . . . . . . . . . . 1 . . . . . . . . . . . . . . . . . . . . Operators 4 | . . . . . . . . . . 1 . . . . 1 . 1 . . . . . . . . 1 . . . . Skim 17 | . . . 5 . . . . . . 4 . . . . 5 . 3 . . . . . . . . . . . . . Sabotage 7 | . . . . . . . . . 7 . . . . . . . . . . . . . . . . . . . . . Fabricators 5 | . . . . . . . . . . 2 . . . . . . 3 . . . . . . . . . . . . . Prioritize 2 | . . . . . . . . . . 1 . . . . . . 1 . . . . . . . . . . . . . Haulers 1 | . . . . . . . . . . . . . . . . . 1 . . . . . . . . . . . . . Overload 1 | . . . . . . . . . . . . . . . . . 1 . . . . . . . . . . . . . Recompile 1 | . . . . . . . . . . 1 . . . . . . . . . . . . . . . . . . . . Repair Stations . | . . . . . . . . . . . . . . . . . . . . . . . . . . . . . . . Recycling Units 14 | . . . 7 . 1 . . . . 1 . . . . 1 . 2 . . . . 1 . . . . . 1 . . Tunnel 7 | . . . 7 . . . . . . . . . . . . . . . . . . . . . . . . . . . Scrapoids 7 | . . . . . 1 . . . . 1 . . . . 1 . 2 . . . . 1 . . . . . 1 . . Scanalyzers 2 | . . . . . . . . . . . . . . . . . . . . . . . . . . . 1 1 . . Researchers 2 | . . . . . . . . . . . . . . . . . . . . . . . . . . . 1 1 . . Garrison Access . | . . . . . . . . . . . . . . . . . . . . . . . . . . . . . . . Data Cores Recovered 3 | . 1 . . . . . . . 1 . . . . . . . . . . . . . . . . 1 . . . . Used 1 | . 1 . . . . . . . . . . . . . . . . . . . . . . . . . . . . . Hacking Detections 79 | . 3 . 10 . 5 7 . . 12 6 . . . . 8 . 3 . . . . 5 2 . 2 2 4 9 1 . Full Trace Events 5 | . . . . . . 1 . . 2 . . . . . . . 1 . . . . 1 . . . . . . . . Feedback Events . | . . . . . . . . . . . . . . . . . . . . . . . . . . . . . . . Feedback Blocked . | . . . . . . . . . . . . . . . . . . . . . . . . . . . . . . . Robot Schematics Acquired 1 | . . . . . . . . . . . . . . . 1 . . . . . . . . . . . . . . . Robots Built . | . . . . . . . . . . . . . . . . . . . . . . . . . . . . . . . Authchips . | . . . . . . . . . . . . . . . . . . . . . . . . . . . . . . . Time . | . . . . . . . . . . . . . . . . . . . . . . . . . . . . . . . Total Robot Build Rating . | . . . . . . . . . . . . . . . . . . . . . . . . . . . . . . . Part Schematics Acquired 15 | . 1 . . . 3 . . . 1 . . . 4 . 2 . 1 . . . . 2 . . . . 1 . . . Parts Built 3 | . . . . . . . . . . 2 . . . . . . 1 . . . . . . . . . . . . . Authchips 1 | . . . . . . . . . . 1 . . . . . . . . . . . . . . . . . . . . Time 164 | . . . . . . . . . . 53 . . . . . . 111 . . . . . . . . . . . . . Total Part Build Rating 21 | . . . . . . . . . . 12 . . . . . . 9 . . . . . . . . . . . . . Part Studies Acquired 14 | . . . . . 3 . . . . . . . . . 3 . 2 . . . . 4 . . 1 . . 1 . . Parts Repaired 3 | . . . . . . . . . . 1 . . . . . . 1 . . . . . . . . 1 . . . . Time 92 | . . . . . . . . . . 34 . . . . . . 22 . . . . . . . . 36 . . . . Parts Recycled . | . . . . . . . . . . . . . . . . . . . . . . . . . . . . . . . Recycled Matter 12 | . . . . . . . . . . . . . . . 12 . . . . . . . . . . . . . . . Retrieved Matter 12 | . . . . . . . . . . . . . . . 12 . . . . . . . . . . . . . . . Retrieved Components 5 | . . . 3 . . . . . . . . . . . . . 2 . . . . . . . . . . . . . Parts Scanalyzed 4 | . . . . . 1 . . . . . . . . . 1 . . . . . . 2 . . . . . . . . Part Schematics Acquired 3 | . . . . . . . . . . . . . . . 1 . . . . . . 2 . . . . . . . . Parts Damaged . | . . . . . . . . . . . . . . . . . . . . . . . . . . . . . . . Bothacking | -11 -10 -10 -9 -9 -6 -6 -6 -6 -6 -5 -5 -5 -5 -4 -4 -4 -4 -4 -4 -4 -3 -3 -3 -3 -2 -2 -2 -1 -1 -1 ------------ Run | Yrd Mat Sub Rec Scr Fac Ext Cet Arc Hub Fac Upp Upp Zhi Pro Fac Was Fac Upp Upp War Pro Res Arm Lab Res Qua Frg Acc Com Ac0 Used RIF Installer . | . . . . . . . . . . . . . . . . . . . . . . . . . . . . . . . Robots Hacked 20 | . . . . 1 1 . . 1 . . . . 3 . 4 . 3 . . . . . . . 4 3 . . . . Non-combat 9 | . . . . . . . . . . . . . . . 4 . 2 . . . . . . . 3 . . . . . Combat 7 | . . . . 1 . . . 1 . . . . 3 . . . 1 . . . . . . . . 1 . . . . Robot Hacks Applied 16 | . . . . 1 . . . 1 . . . . 3 . 4 . 3 . . . . . . . 3 1 . . . . parse_system 8 | . . . . 1 . . . 1 . . . . 3 . . . 1 . . . . . . . 1 1 . . . . find_chute 2 | . . . . . . . . . . . . . . . 2 . . . . . . . . . . . . . . . find_fabricator 2 | . . . . . . . . . . . . . . . 1 . 1 . . . . . . . . . . . . . find_recycling 4 | . . . . . . . . . . . . . . . 1 . 1 . . . . . . . 2 . . . . . Manual 4 | . . . . . 1 . . . . . . . . . . . . . . . . . . . 1 2 . . . . Relay Couplers Released 6 | . . . . . 4 . . . . . . . . . . . . . . . . 2 . . . . . . . . Machine Destruction 2 | . . . . . . . . . . . . . . . . . . . . . . 2 . . . . . . . . Programmers 4 | . . . . . 4 . . . . . . . . . . . . . . . . . . . . . . . . . Fabnet Peak Effective % . | . . . . . . . . . . . . . . . . . . . . . . . . . . . . . . . Robots Rewired 26 | . . . 6 . . 14 . . . . . . . . . . . . . 5 . . 1 . . . . . . . Allies Hacked 1 | . . . . . . . . . . . . . . . . . . . . . . . . . . . . 1 . . Hacks Repelled . | . . . . . . . . . . . . . . . . . . . . . . . . . . . . . . . Allies | -11 -10 -10 -9 -9 -6 -6 -6 -6 -6 -5 -5 -5 -5 -4 -4 -4 -4 -4 -4 -4 -3 -3 -3 -3 -2 -2 -2 -1 -1 -1 -------- Run | Yrd Mat Sub Rec Scr Fac Ext Cet Arc Hub Fac Upp Upp Zhi Pro Fac Was Fac Upp Upp War Pro Res Arm Lab Res Qua Frg Acc Com Ac0 Total Allies 74 | . . . 6 1 5 18 5 . . 5 . . . . 6 . 12 . . 5 . 5 1 . . . . 5 . . Largest Group 11 | . . . 6 7 5 8 11 6 5 5 . . . . 6 1 5 . . 5 . 5 1 . . . . 5 . . Highest-Rated Group 786 | . . . 90 183 149 367 786 386 290 238 . . . . 264 26 241 . . 277 . 320 56 . . . . 323 . . Highest-Rated Ally 159 | . . . 34 93 31 159 159 96 96 50 . . . . 50 26 50 . . 68 . 64 56 . . . . 67 . . Initial UFD Resources 23 | . . . . . 23 20 20 20 20 23 20 20 20 23 23 20 20 14 14 14 17 17 14 14 18 18 18 21 18 18 Total Orders 140 | . . . . 9 . . 2 1 2 . . . . . 3 . 1 . . 12 . 4 . . 3 3 7 6 38 49 STAY 22 | . . . . 3 . . 1 1 2 . . . . . 2 . 1 . . 6 . 2 . . 1 . . 3 . . ROAM 1 | . . . . . . . . . . . . . . . . . . . . 1 . . . . . . . . . . FOLLOW 19 | . . . . 4 . . 1 . . . . . . . 1 . . . . 3 . 1 . . . 1 . . 5 3 GUARD 2 | . . . . 2 . . . . . . . . . . . . . . . . . . . . . . . . . . EXPLORE 11 | . . . . . . . . . . . . . . . . . . . . 1 . . . . 1 . . . . 9 RETURN 85 | . . . . . . . . . . . . . . . . . . . . 1 . 1 . . 1 2 7 3 33 37 Ally Attacks 793 | . . . . 27 14 118 51 25 29 51 . . . . 47 . 92 . . 28 . 44 6 . . . . 30 99 132 Total Damage 26749 | . . . . 642 267 2279 1020 668 764 1726 . . . . 1034 . 1718 . . 1232 . 1226 160 . . . . 705 5989 7319 Kills 107 | . . . . 4 3 15 11 4 10 13 . . . . 5 . 10 . . 7 . 6 . . . . . 4 5 10 Allies Corrupted 5 | . . . . . . . . . . . . . . . . . 1 . . 1 . . . . . . . 1 2 . Allies Melted 2 | . . . . 2 . . . . . . . . . . . . . . . . . . . . . . . . . . Intel | -11 -10 -10 -9 -9 -6 -6 -6 -6 -6 -5 -5 -5 -5 -4 -4 -4 -4 -4 -4 -4 -3 -3 -3 -3 -2 -2 -2 -1 -1 -1 ------- Run | Yrd Mat Sub Rec Scr Fac Ext Cet Arc Hub Fac Upp Upp Zhi Pro Fac Was Fac Upp Upp War Pro Res Arm Lab Res Qua Frg Acc Com Ac0 Active Infowar (turns) 26492 | 59 274 891 . 648 774 572 . 21 498 1096 454 404 155 293 1287 70 2268 1186 1213 1664 817 1042 729 291 429 1903 1874 1502 3586 492 Optics 14000 | . . 51 . . . . . . . . . . . . . . . . . 1286 817 1042 729 291 429 1903 1874 1500 3586 492 Sensors 16434 | . . 302 . 648 774 572 . 21 498 941 313 404 152 179 1145 70 1689 948 1046 1525 249 378 493 8 372 1358 891 1458 . . IFF 49 | . . . . . . . . . . . . . . 49 . . . . . . . . . . . . . . . . Terrain 2332 | . . . . . . . . . . . . . . . . . . 964 1043 325 . . . . . . . . . . Structural 997 | . . . . . . . . . . 42 . . . . . . . . . . . 277 . . . . . 678 . . Traps 711 | . . . . . . . . . . . 88 71 . . 114 . 395 . . 43 . . . . . . . . . . Seismic 1054 | 59 274 538 . . . . . . . . . . . . . . . . . . . . . . . . . 183 . . T.N.C. 8460 | . . . . . . . . . . 933 454 404 155 293 1125 49 2195 1186 1213 453 . . . . . . . . . . Cloaking 2 | . . . . . . . . . . . . . . . . . . . . . . . . . . . 2 . . . Jamming 8040 | . . . . . . . . . . . 3 . . 21 698 . 2066 . . . 496 1042 727 291 429 1782 485 . . . ECM 12 | . . . . . . . . . . . . . . . 10 . . . . . . . . . . . . 2 . . Robot Analysis Total 7 | . . . . . . . . . 2 . . . 4 . 1 . . . . . . . . . . . . . . . Derelict Logs Recovered 10 | . . 1 . 5 . . . . . . . . . 1 . . . 2 1 . . . . . . . . . . . Drone Launches 166 | . . . . . . . . . . . . . . . . . . . . 51 . 1 . . 8 2 7 5 45 47 Drone Recoveries 103 | . . . . . . . . . . . . . . . . . . . . 1 . 1 . . 7 2 7 4 38 43 Exploration | -11 -10 -10 -9 -9 -6 -6 -6 -6 -6 -5 -5 -5 -5 -4 -4 -4 -4 -4 -4 -4 -3 -3 -3 -3 -2 -2 -2 -1 -1 -1 ------------- Run | Yrd Mat Sub Rec Scr Fac Ext Cet Arc Hub Fac Upp Upp Zhi Pro Fac Was Fac Upp Upp War Pro Res Arm Lab Res Qua Frg Acc Com Ac0 Turns Passed 41039 | 209 274 5069 1390 4687 923 1533 540 2880 735 1135 454 404 155 293 1287 70 2268 1186 1213 1664 817 1042 729 291 429 1903 1874 1507 3586 492 Spaces Moved 33973 | 115 187 3056 736 3023 1055 1063 220 637 985 1520 759 620 272 645 1930 152 2624 580 643 850 562 1483 580 184 430 2323 1945 1585 2576 633 Core 367 | 8 . . . 5 . . . 320 . 33 . . . . . . . . . . . . . . . . . . 1 . Treads 2404 | 105 3 329 . . . 96 152 . . . . . . . . . 266 580 643 177 . . . . . . . . 53 . Legs 115 | . . . . . 26 21 . . . . . . . . . . . . . . . . . . . . 57 . 11 . Wheels 6915 | 2 184 2727 736 1955 325 946 40 . . . . . . . . . . . . . . . . . . . . . . . Hover 20473 | . . . . . 137 . 28 317 985 897 . . 172 645 1930 152 2358 . . 673 562 1483 580 184 430 2323 1888 1585 2511 633 Flight 3699 | . . . . 1063 567 . . . . 590 759 620 100 . . . . . . . . . . . . . . . . . Fastest Speed 22 | 50 95 95 165 34 34 70 56 52 52 26 26 26 26 22 22 22 33 160 160 24 24 22 41 44 41 41 33 33 30 42 Average Speed 83 | 151 104 133 169 142 59 96 135 428 53 46 27 29 31 33 39 31 58 160 160 89 37 40 52 44 41 47 40 33 97 42 Slowest Speed 2700 | 160 160 179 179 295 180 240 160 800 56 110 106 186 100 34 92 38 160 160 160 250 38 107 135 44 41 145 154 103 2700 129 Overloaded Moves 182 | . . . . . . . . . . . . . . 11 17 41 56 . . 34 5 18 . . . . . . . . Propulsion Burnouts . | . . . . . . . . . . . . . . . . . . . . . . . . . . . . . . . Robots Hopped 8 | . . . . 2 2 . . . . 2 2 . . . . . . . . . . . . . . . . . . . Potential Cave-ins 12 | . . . . . . . . . . . . . . . . 7 . . . 3 . . 2 . . . . . . . Cave-ins Triggered 1 | . . . . . . . . . . . . . . . . 1 . . . . . . . . . . . . . . Teleports 7 | . . . . . . . . . . . . . . . . . . . . . . . 1 . . 3 1 . 1 1 Exploration Rate (%) 62 | 6 50 98 94 86 22 88 68 98 63 34 83 67 60 85 27 87 39 77 80 96 65 36 39 95 16 96 35 36 79 43 Regions Visited 30 Branch Regions 21 Pre-discovered Areas 14 | . . 2 7 2 . . . . . . . . 3 . . . . . . . . . . . . . . . . . Known Exits Taken 23 | . . . . 1 1 1 1 1 1 1 1 1 1 1 . . 1 1 1 1 1 1 1 1 1 1 1 1 . . Unknown Exits Taken 5 | 1 1 1 1 . . . . . . . . . . . . . . . . . . . . . . . . . 1 . Scrap Searched 29 | . . 10 . 8 . . . . . . 3 . . 3 . . . 1 2 . 2 . . . . . . . . . Spaces Dug 704 | . . 65 5 3 18 4 . . 41 15 6 7 . 5 39 16 51 15 41 1 62 5 51 . 11 25 84 39 33 62 Terrain Destroyed 2415 | . . 94 6 3 7 8 2 . 208 15 6 7 . 3 46 10 73 117 267 120 122 7 274 . 15 76 487 332 37 73 Melee 81 | . . 27 2 . 1 4 . . 16 12 . . . . 4 . . . . . . 2 4 . . . 1 3 5 . Projectile 348 | . . 48 4 . . 4 2 . 1 . . . . 3 7 . 19 9 8 . . 5 9 . 7 21 161 34 6 . AOE 1447 | . . 19 . . . . . . 177 . . . . . 20 . 26 108 259 119 98 . 252 . . . 62 245 . 62 Terrain Rammed . | . . . . . . . . . . . . . . . . . . . . . . . . . . . . . . . Walls Destroyed . | . . . . . . . . . . . . . . . . . . . . . . . . . . . . . . . Machines Disabled . | . . . . . . . . . . . . . . . . . . . . . . . . . . . . . . . Actions | -11 -10 -10 -9 -9 -6 -6 -6 -6 -6 -5 -5 -5 -5 -4 -4 -4 -4 -4 -4 -4 -3 -3 -3 -3 -2 -2 -2 -1 -1 -1 --------- Run | Yrd Mat Sub Rec Scr Fac Ext Cet Arc Hub Fac Upp Upp Zhi Pro Fac Was Fac Upp Upp War Pro Res Arm Lab Res Qua Frg Acc Com Ac0 Total 44905 | 134 229 3811 849 3401 1270 1461 422 750 1126 1804 992 835 334 706 2382 169 3200 803 807 1748 1157 1848 863 373 650 3053 2842 2487 3590 809 Wait 6773 | 2 4 429 17 296 79 138 124 73 89 82 216 204 21 30 256 13 318 152 97 778 547 203 84 143 146 488 298 728 692 26 Move 33928 | 114 186 3055 735 3019 1050 1062 219 636 985 1515 754 619 271 644 1930 150 2623 579 642 850 561 1482 579 183 429 2322 1944 1584 2574 632 Hop 7 | . . . . 1 2 . . . . 2 2 . . . . . . . . . . . . . . . . . . . Pick Up 395 | 4 14 38 13 27 10 16 5 3 1 18 2 . 8 4 11 . 24 6 6 22 3 14 10 14 2 20 48 7 34 11 Fast Attach 355 | 7 . 8 . 3 33 11 17 4 . 11 . . 6 2 14 1 9 1 6 10 1 22 12 1 5 29 84 18 35 5 Attach 243 | . . 8 1 5 4 5 3 1 . 12 2 1 4 3 8 1 23 8 10 11 12 7 5 5 2 11 43 8 25 15 Detach 121 | . . . . 1 1 1 . 1 . 6 . 1 2 1 4 1 14 4 8 4 9 1 1 . 1 2 33 6 12 7 Swap 499 | 1 4 19 3 5 2 11 6 2 21 27 9 5 3 5 35 1 35 4 . 17 14 24 37 3 24 26 84 39 27 6 Drop 573 | . 4 24 . 38 21 19 22 7 1 12 2 . 8 6 22 . 29 7 11 28 3 31 22 12 5 42 111 24 50 12 Fire 916 | 6 17 149 10 1 18 72 10 4 3 11 5 5 8 11 32 1 78 37 27 11 5 24 67 . 26 106 63 47 46 16 Melee 732 | . . 66 15 5 50 27 16 19 26 65 . . 3 . 21 . 34 . . . 2 40 29 12 4 7 116 22 74 79 Ram 2 | . . . 1 . . . . . . . . . . . . . . . . 1 . . . . . . . . . . Kick . | . . . . . . . . . . . . . . . . . . . . . . . . . . . . . . . Crush 2 | . . . . . . . . . . . . . . . . . . 2 . . . . . . . . . . . . Escape Stasis 60 | . . . . . . . . . . . . . . . . 1 13 . . . . . 9 . . . 18 . 19 . Rewire 176 | . . . 54 . . 99 . . . . . . . . . . . 3 . 11 . . 8 . . . . 1 . . Trap 101 | . . . . . . . . . . 43 . . . . 49 . . . . . . . . . 6 . . 3 . . Miscellaneous 22 | . . 15 . . . . . . . . . . . . . . . . . 5 . . . . . . . . 2 . Route ------- -11/Scrapyard -10/Materials (discovered 2 exits: [*Min] / *Sub) -10/Subcaves (discovered 4 exits: [*Mat x2] / *Rec / *Scr) -9/Recycling (discovered 2 exits: [*Fac] / *Scr) -9/Scraptown (discovered 2 exits: *Fac x2) -6/Factory (discovered 2 exits: *Low / *Ext) -6/Extension (discovered 2 exits: *Fac / *Cet) -6/Cetus (discovered 2 exits: *Fac / *Arc) -6/Archives (discovered 3 exits: *Fac / *Hub x2) -6/Hub_04(d) (discovered 4 exits: *Fac x4) -5/Factory (discovered 2 exits: *Upp x2) -5/Upper Caves -5/Upper Caves (discovered 2 exits: *Fac / *Zhi) -5/Zhirov -4/Proximity Caves -4/Factory (discovered 4 exits: *Res x2 / *Upp x2) -4/Waste -4/Factory (discovered 2 exits: *Upp x2) -4/Upper Caves -4/Upper Caves (discovered 2 exits: *Res / *War) -4/Warlord -3/Proximity Caves -3/Research (discovered 5 exits: Res x2 / *Arm / *Tes x2) -3/Armory (discovered 2 exits: Res / *Lab) -3/Lab -2/Research (discovered 2 exits: *Qua x2) -2/Quarantine (discovered 3 exits: *Acc / *Sec / *Frg) -2/Protoforge -1/Access -1/Command (discovered 3 exits: [*Sur x2] / [*Ac0]) -1/Access_0 Near Former Tau Ceti IV History --------- Turn | Location | Event 32 | -11/Scrapyard | Discovered new exit (range 15) 210 | -11/Scrapyard | Entered Materials 211 | -10/Materials | Met a group of wandering Federalists 248 | -10/Materials | Central database locked down 284 | -10/Materials | Discovered new exit (range 16) 330 | -10/Materials | Build established: Mutant 440 | -10/Materials | Discovered new exit (range 13) 484 | -10/Materials | Entered Subcaves 485 | -10/Subcaves | Continued accompanying wandering Federalists (3) 560 | -10/Subcaves | Discovered new exit (range 8) 566 | -10/Subcaves | Discovered new exit (range 11) 735 | -10/Subcaves | Shifting Twisted Machinery released Sub. Machine Gun 739 | -10/Subcaves | Wandering Federalist uncovered a shortcut to Scraptown 745 | -10/Subcaves | Lost 4 allies 844 | -10/Subcaves | Visited Clippyterm 849 | -10/Subcaves | Learned location of Section 7 (-2) 1061 | -10/Subcaves | Shifting Twisted Machinery released Sub. Monowheel 1064 | -10/Subcaves | Shifting Twisted Machinery released Mak. Shrapnel Gun 1072 | -10/Subcaves | Lost 3 parts (1p1u1w) 1408 | -10/Subcaves | Found Prototype Device 1467 | -10/Subcaves | Discovered new exit (range 8) 1561 | -10/Subcaves | A swath of the cavern ceiling suddenly collapsed 1707 | -10/Subcaves | Learned location of Storage (-9) 1774 | -10/Subcaves | Build established: Subdweller-Mutant 1810 | -10/Subcaves | Disturbed a concealed Subdweller 2334 | -10/Subcaves | Shifting Twisted Machinery released Riot Gun 2337 | -10/Subcaves | Shifting Twisted Machinery released Battle Rifle 2444 | -10/Subcaves | Disturbed a concealed Subdweller 4723 | -10/Subcaves | Visited 4L-MR0's lab 4727 | -10/Subcaves | Identified Power Bank 4845 | -10/Subcaves | Found Powered Cannon 5377 | -10/Subcaves | Build established: Hauler-Mutant 5553 | -10/Subcaves | Entered Recycling 6262 | -9/Recycling | Scanned before Scraplab entrance 6346 | -9/Recycling | Discovered new exit (range 8) 6377 | -9/Recycling | Learned location of 1 exit from Storage 6423 | -9/Recycling | Learned location of 2 exits from Materials 6487 | -9/Recycling | Learned 2 Materials zone layouts 6530 | -9/Recycling | Learned Storage stockpile data 6565 | -9/Recycling | Learned Materials non-interactive machine intel 6901 | -9/Recycling | Entered Scraplab 6915 | -9/Recycling | Discovered new exit (range 4) 6943 | -9/Recycling | Entered Scraptown 6943 | -9/Scraptown | Accompanied by 6 allies 7031 | -9/Scraptown | Visited Bundlers 7094 | -9/Scraptown | Visited Assassins FH 7145 | -9/Scraptown | Visited Fellowship of the Rings 7196 | -9/Scraptown | Visited Spacefarers 7222 | -9/Scraptown | Visited Red Mages 7242 | -9/Scraptown | Visited Comm Corps 7375 | -9/Scraptown | Scanned Subdweller tech in exchange for log data 7379 | -9/Scraptown | Learned Factory trap positions 7384 | -9/Scraptown | Learned location of Warlord (-4) 7386 | -9/Scraptown | Learned location of 1 exit from Research 7388 | -9/Scraptown | Learned location of Testing (-3) 7415 | -9/Scraptown | Discovered new exit (range 11) 8003 | -9/Scraptown | Visited UFD Registry 8003 | -9/Scraptown | Registered with UFD as "Biowalker" 8047 | -9/Scraptown | Visited Scrapoid Pod Storage 8102 | -9/Scraptown | Visited Junk Repository 8150 | -9/Scraptown | Visited Botcube Research 8177 | -9/Scraptown | Visited Research Penetration Think Tank 8240 | -9/Scraptown | Visited Abandonware Association 8276 | -9/Scraptown | Learned abandonware demo "ERRANTS.EXE" 8276 | -9/Scraptown | Learned abandonware demo "TRNCOAT.EXE" 8333 | -9/Scraptown | Visited Science Testing Area 8417 | -9/Scraptown | Visited Modified Component R&D 8631 | -9/Scraptown | Delivered Scrap Shield to a Scientist 8972 | -9/Scraptown | Found Botcube 9484 | -9/Scraptown | Found Scrap Suit 10097 | -9/Scraptown | Botcube activated 10123 | -9/Scraptown | Botcube completed mutation into wheeled form, armed with 1 cannon. 10126 | -9/Scraptown | Attached CPS modules to *Bobblehead. 11248 | -9/Scraptown | Build established: Commander-Mutant 11453 | -9/Scraptown | Met Optimus 11453 | -9/Scraptown | Accepted into 0bPrime 11476 | -9/Scraptown | Civil war broke out across Scraptown 11486 | -9/Scraptown | Found PL-3XN's Ring of Power 11502 | -9/Scraptown | Core integrity fell below 50% 11509 | -9/Scraptown | Visited LU-1G1's Boring Crew 11530 | -9/Scraptown | Found Prototype Special Weapon 11542 | -9/Scraptown | Identified LU-1G1's Laser Shovel 11565 | -9/Scraptown | Lost 9 allies 11587 | -9/Scraptown | Discovered new exit (range 11) 11625 | -9/Scraptown | Lost 4 allies 11629 | -9/Scraptown | Identified exit to Factory 11630 | -9/Scraptown | Entered Factory 11630 | -6/Factory | Evolved 8 slots: Power x1, Propulsion x3, Utility x4 11631 | -6/Factory | Loaded intel: 99 trap records 11674 | -6/Factory | Found Powered Armor 11699 | -6/Factory | Discovered new exit (range 6) 11700 | -6/Factory | Identified exit to Lower Caves 11786 | -6/Factory | Build established: Mutant 12059 | -6/Factory | Lost 6 parts (1p4n1u) 12142 | -6/Factory | Tech Extrapolator generated special schematic: Deep Structural Scanner 12174 | -6/Factory | Garrison activated, responded to threat 12201 | -6/Factory | Build established: Scavenger-Mutant 12394 | -6/Factory | Discovered new exit (range 6) 12422 | -6/Factory | Identified exit to Extension 12468 | -6/Factory | Scrapoid reinforcements arrived 12497 | -6/Factory | Found Scrap Suit 12553 | -6/Factory | Entered Extension 12553 | -6/Extension | Accompanied by 4 allies 12619 | -6/Extension | Found Scrap Suit 12915 | -6/Extension | Build established: Scavenger-Scrapper 12969 | -6/Extension | Rescued a captive Derelict 12971 | -6/Extension | Rescued a captive Derelict 12991 | -6/Extension | Lost 3 parts (1p1u1w) 13404 | -6/Extension | Spotted B-75 Beast 13430 | -6/Extension | Allies destroyed B-75 Beast 13431 | -6/Extension | Spotted B-75 Beast 13496 | -6/Extension | Destroyed B-75 Beast 13499 | -6/Extension | Lost 7 allies 13520 | -6/Extension | Lost 3 parts (1n2w) 13552 | -6/Extension | Rescued A7 13570 | -6/Extension | Attached CPS modules to A7. 13627 | -6/Extension | Rescued a captive Derelict 14054 | -6/Extension | Discovered new exit (range 10) 14059 | -6/Extension | Discovered new exit (range 6) 14080 | -6/Extension | Identified exit to Cetus 14086 | -6/Extension | Entered Cetus 14086 | -6/Cetus | Accompanied by 8 allies (A7) 14091 | -6/Cetus | Acquired a Cetus Manufacturing Module code from A7 14112 | -6/Cetus | Spotted Cetus Guard 14112 | -6/Cetus | Spotted Cetus Guard 14122 | -6/Cetus | Allies destroyed Cetus Guard 14122 | -6/Cetus | Spotted Cetus Guard 14127 | -6/Cetus | Allies destroyed Cetus Guard 14127 | -6/Cetus | Allies destroyed Cetus Guard 14217 | -6/Cetus | Started Cetus Manufacturing Module 14233 | -6/Cetus | Escorted A7 to Cetus Mainframe 14242 | -6/Cetus | Manufactured an Enhanced Grunt 14261 | -6/Cetus | Discovered new exit (range 15) 14267 | -6/Cetus | Manufactured an Enhanced Grunt 14292 | -6/Cetus | Manufactured an Enhanced Grunt 14317 | -6/Cetus | Manufactured an Enhanced Grunt 14342 | -6/Cetus | Manufactured an Enhanced Grunt 14377 | -6/Cetus | Spotted Cetus Guard 14377 | -6/Cetus | Spotted Cetus Guard 14383 | -6/Cetus | Spotted Cetus Guard 14384 | -6/Cetus | Allies destroyed Cetus Guard 14385 | -6/Cetus | Spotted Cetus Guard 14395 | -6/Cetus | Allies destroyed Cetus Guard 14395 | -6/Cetus | Allies destroyed Cetus Guard 14399 | -6/Cetus | Allies destroyed Cetus Guard 14420 | -6/Cetus | Discovered new exit (range 15) 14424 | -6/Cetus | Lost 4 allies 14428 | -6/Cetus | Met Revision 17 14508 | -6/Cetus | Identified exit to Archives 14561 | -6/Cetus | Murdered A7 14565 | -6/Cetus | Extracted ID and sensor layout for unrecognized location from A7's data core 14594 | -6/Cetus | Found Prototype Protection 14594 | -6/Cetus | Identified Med. Regenerative Plating 14626 | -6/Cetus | Entered Archives 14626 | -6/Archives | Accompanied by 6 allies 14702 | -6/Archives | Build established: Scavenger-Mutant 14707 | -6/Archives | Discovered new exit (range 16) 14797 | -6/Archives | Discovered new exit (range 16) 14814 | -6/Archives | Discovered new exit (range 13) 15038 | -6/Archives | Identified exit to Hub_04(d) 17506 | -6/Archives | Entered Hub_04(d) 17506 | -6/Hub_04(d) | Accompanied by 5 allies 17651 | -6/Hub_04(d) | Core integrity fell below 50% 17665 | -6/Hub_04(d) | Garrison activated, responded to threat 17714 | -6/Hub_04(d) | Lost 4 allies 17775 | -6/Hub_04(d) | Discovered new exit (range 16) 17783 | -6/Hub_04(d) | Identified exit to Factory 18134 | -6/Hub_04(d) | Network Hub disabled 18135 | -6/Hub_04(d) | Spotted Lightning 18147 | -6/Hub_04(d) | Spotted Lightning 18185 | -6/Hub_04(d) | Network Hub disabled 18223 | -6/Hub_04(d) | Network Hub disabled 18241 | -6/Hub_04(d) | Entered Factory 18241 | -5/Factory | Evolved 2 slots: Propulsion x1, Utility x1 18579 | -5/Factory | Lost 6 parts (1p3n1u1w) 18675 | -5/Factory | Repaired Antigrav Array? 18679 | -5/Factory | Identified exit to Upper Caves 18720 | -5/Factory | Scrapoids reinforcements arrived? 18797 | -5/Factory | Build established: Scavenger-Scout 18874 | -5/Factory | Lost 3 allies 19046 | -5/Factory | Watched by a mysterious "MATRIX" hacker. 19234 | -5/Factory | Fabricated Adv. Trap Extractor? 19376 | -5/Factory | Entered Upper Caves 19378 | -5/Upper Caves | UFD Scientist delivered a prototype 19381 | -5/Upper Caves | Found Prototype Protection 19770 | -5/Upper Caves | Discovered new exit (range 15) 19774 | -5/Upper Caves | Identified exit to Upper Caves 19830 | -5/Upper Caves | Entered another Upper Caves area 19841 | -5/Upper Caves | Discovered new exit (range 7) 19842 | -5/Upper Caves | Identified exit to Factory 20178 | -5/Upper Caves | Encountered a Warlord checkpoint 20207 | -5/Upper Caves | Discovered new exit (range 7) 20208 | -5/Upper Caves | Identified exit to Zhirov 20234 | -5/Upper Caves | Entered Zhirov 20235 | -5/Zhirov | Discovered new exit (range 3) 20236 | -5/Zhirov | Identified exit to Proximity Caves 20240 | -5/Zhirov | Met Zhirov 20252 | -5/Zhirov | Learned location of Quarantine (-2) 20252 | -5/Zhirov | Learned location of Command (-1) 20254 | -5/Zhirov | Zhirov requested help retrieving the SGEMP Prototype 20258 | -5/Zhirov | Found Alien Artifact 20258 | -5/Zhirov | Identified Integrated Dissipator 20258 | -5/Zhirov | Installed Integrated Dissipator, increased core heat dissipation (+20) 20375 | -5/Zhirov | Found Alien Artifact 20389 | -5/Zhirov | Entered Proximity Caves 20414 | -4/Proximity Caves | Spotter reported a threat 20414 | -4/Proximity Caves | Spotter reported a threat 20471 | -4/Proximity Caves | Spotter reported a threat 20473 | -4/Proximity Caves | Spotter reported a threat 20524 | -4/Proximity Caves | Spotter reported a threat 20526 | -4/Proximity Caves | Spotter reported a threat 20574 | -4/Proximity Caves | Learned 8 Research zone layouts 20578 | -4/Proximity Caves | Discovered exit to Factory (range 10) 20682 | -4/Proximity Caves | Entered Factory 20682 | -4/Factory | Evolved 2 slots: Utility x2 20844 | -4/Factory | Identified exit to Upper Caves 20932 | -4/Factory | Learned location of 1 exit from Armory 20978 | -4/Factory | Identified exit to Research 21014 | -4/Factory | Learned location of 2 exits from Research 21042 | -4/Factory | Learned 4 Upper Caves zone layouts 21082 | -4/Factory | Learned 4 Research zone layouts 21227 | -4/Factory | Build established: Hacker-Ninja 21381 | -4/Factory | Scrapoids reinforcements arrived? 21531 | -4/Factory | Lost 3 allies 21928 | -4/Factory | Central database locked down 21932 | -4/Factory | First assault squad dispatched 21969 | -4/Factory | Sucked down chute 21969 | -4/Factory | Entered Waste 21979 | -4/Waste | Found Fusion Bomb Launcher 21983 | -4/Waste | Spotted C-40 Crusher 21983 | -4/Waste | Spotted C-40 Crusher 21984 | -4/Waste | 1 allies followed down the chute 21984 | -4/Waste | EMP discharged 21985 | -4/Waste | Spotted C-40 Crusher 21986 | -4/Waste | Spotted C-40 Crusher 21988 | -4/Waste | Spotted C-40 Crusher 22018 | -4/Waste | Crushed by falling debris 22019 | -4/Waste | System corruption reached 10% 22028 | -4/Waste | Spotted C-40 Crusher 22033 | -4/Waste | Discovered new exit (range 16) 22039 | -4/Waste | Entered Factory 22049 | -4/Factory | Lost 4 parts (1n3u) 22086 | -4/Factory | Found Gamma Bomb Array 22093 | -4/Factory | Attached CPS modules to A-15 Conveyor. 22105 | -4/Factory | Scrapoids reinforcements arrived? 22244 | -4/Factory | Repaired Antigrav Array+ 22315 | -4/Factory | Build established: Hacker-Mutant 22386 | -4/Factory | Fabricated Exp. EM Shield? 22666 | -4/Factory | Build established: Hacker-Scout 22804 | -4/Factory | Targeted by mysterious "MATRIX" hacker. 23648 | -4/Factory | Lost 3 parts (2n1w) 23854 | -4/Factory | Identified Enh. Scrap Shield 23861 | -4/Factory | Scrapoid reinforcements arrived 24088 | -4/Factory | Lost 5 allies 24182 | -4/Factory | Build established: Hacker-Mutant 24268 | -4/Factory | Found Prototype Hackware 24307 | -4/Factory | Entered Upper Caves 24545 | -4/Upper Caves | Identified exit to Upper Caves 24652 | -4/Upper Caves | Learned location of 1 exit from Research 25071 | -4/Upper Caves | Build established: Trapper-Mutant 25129 | -4/Upper Caves | Encountered a Warlord checkpoint 25493 | -4/Upper Caves | Entered another Upper Caves area 25513 | -4/Upper Caves | Discovered exit to Research (range 24) 25885 | -4/Upper Caves | Build established: Trapper-Skirmisher 26256 | -4/Upper Caves | Discovered new exit (range 18) 26275 | -4/Upper Caves | Attracted the attention of an 0b10 checkpoint 26330 | -4/Upper Caves | Learned 8 Research zone layouts 26702 | -4/Upper Caves | Identified exit to Warlord 26706 | -4/Upper Caves | Entered Warlord 26765 | -4/Warlord | System corruption cleaned by Quarantine Array 26907 | -4/Warlord | Found Prototype Special Weapon 26908 | -4/Warlord | Identified RU-N14's Throwing Claymores v3 26914 | -4/Warlord | Found RU-N14's Throwing Claymores v3 26918 | -4/Warlord | Found RU-N14's Throwing Claymores v3 26956 | -4/Warlord | Found Prototype Device 26956 | -4/Warlord | Identified Minesniffer Drone Bay 27064 | -4/Warlord | Found Prototype Hackware 27076 | -4/Warlord | Found Prototype Reactor 27076 | -4/Warlord | Identified Vortex Chain Reactor 27084 | -4/Warlord | Found Prototype Processor 27084 | -4/Warlord | Identified Spectral Analyzer 27147 | -4/Warlord | Visited the Vortex Lab 27153 | -4/Warlord | Found Prototype Piercing Weapon 27154 | -4/Warlord | Identified Vortex Lance 27157 | -4/Warlord | Found Vortex Lance 27161 | -4/Warlord | Found Vortex Lance 27163 | -4/Warlord | Found Vortex Lance 27164 | -4/Warlord | Warlord's base attacked by MAIN.C 27291 | -4/Warlord | Rebuked by Warlord 27514 | -4/Warlord | Warlord forces counterattacked 27669 | -4/Warlord | Lost 14 allies 27730 | -4/Warlord | Lost 3 allies 27820 | -4/Warlord | Lost 4 allies 27839 | -4/Warlord | Warlord base infiltrated, sounded retreat 27865 | -4/Warlord | Attached CPS modules to Enhanced Demolisher. 27897 | -4/Warlord | Spotted Striker 27922 | -4/Warlord | Attached CPS modules to LV-01A. 28135 | -4/Warlord | Build established: Trapper-Scout 28202 | -4/Warlord | Spotted Striker 28217 | -4/Warlord | Lost 5 allies 28265 | -4/Warlord | Found Prototype Processor 28266 | -4/Warlord | Identified Exp. Core Analyzer 28310 | -4/Warlord | Spotted Executioner 28343 | -4/Warlord | Found Prototype Launcher 28346 | -4/Warlord | Found Prototype Device 28353 | -4/Warlord | Identified Exp. Neutron Missile Launcher 28358 | -4/Warlord | Core integrity fell below 50% 28362 | -4/Warlord | Spotted Striker 28365 | -4/Warlord | Spotted Striker 28366 | -4/Warlord | Discovered new exit (range 13) 28367 | -4/Warlord | Spotted Striker 28367 | -4/Warlord | Spotted Executioner 28368 | -4/Warlord | Identified exit to Proximity Caves 28370 | -4/Warlord | Entered Proximity Caves 28378 | -3/Proximity Caves | Identified Matter Focus 28385 | -3/Proximity Caves | Lost 3 allies 28580 | -3/Proximity Caves | Attracted the attention of an 0b10 checkpoint 28663 | -3/Proximity Caves | Discovered exit to Research (range 13) 28911 | -3/Proximity Caves | Build established: Trapper-Mutant 29187 | -3/Proximity Caves | Entered Research 29187 | -3/Research | Evolved 2 slots: Propulsion x1, Utility x1 29188 | -3/Research | Identified exit to Armory 29188 | -3/Research | Identified exit to Research 29188 | -3/Research | Identified exit to Testing 29193 | -3/Research | Identified Exp. System Shield 29349 | -3/Research | Spotted B-86 Titan 29387 | -3/Research | Revision forces began assault on 0b10 29459 | -3/Research | Build established: Hacker-Mutant 29521 | -3/Research | Met up with Revision 17++ 29605 | -3/Research | Identified Ghost Barrier 29663 | -3/Research | Scrapoids reinforcements arrived? 29709 | -3/Research | Attached CPS modules to Revision 17++. 29711 | -3/Research | Attached CPS modules to 03R28-D. 29759 | -3/Research | Found Prototype Device 29759 | -3/Research | Identified Exp. Focal Shield 29797 | -3/Research | Lost 3 allies 29850 | -3/Research | Lost 4 allies 29887 | -3/Research | Research terminal network offline 29980 | -3/Research | Spotted B-86 Titan 30175 | -3/Research | Found Prototype Launcher 30175 | -3/Research | Identified Tesla Bomb Launcher 30205 | -3/Research | Central database locked down 30229 | -3/Research | Entered Armory 30479 | -3/Armory | First assault squad dispatched 30512 | -3/Armory | Destroyed 8 combat bots 30855 | -3/Armory | Breached Obliterator storage 30863 | -3/Armory | Found PL-3XN's Ring of Power 30869 | -3/Armory | Spotted Armor Guard 30869 | -3/Armory | Spotted Armor Guard 30875 | -3/Armory | Found Disassembled Obliterator 30880 | -3/Armory | Attached CPS modules to Armor Guard. 30882 | -3/Armory | Attached CPS modules to Armor Guard. 30906 | -3/Armory | Destroyed Armor Guard 30907 | -3/Armory | Destroyed Armor Guard 30920 | -3/Armory | Found Prototype Device 30921 | -3/Armory | Identified Exp. Weapon Cycler 30925 | -3/Armory | Found Exp. Weapon Cycler 30956 | -3/Armory | Identified Transdimensional Reconstructor 30956 | -3/Armory | Warped through subspace to slip node 30956 | -3/Armory | Discovered new exit (range 1) 30956 | -3/Armory | Identified exit to Lab 30958 | -3/Armory | Entered Lab 30958 | -3/Lab | Discovered exit to Research (range 9) 30963 | -3/Lab | Hidden lab's door opened automatically 30963 | -3/Lab | Sensor layout match revealed 30964 | -3/Lab | Gained access to the hidden lab's interior 31058 | -3/Lab | Build established: Trapper-Mutant 31136 | -3/Lab | Found Transdimensional Reconstructor 31144 | -3/Lab | Found Alien Artifact 31152 | -3/Lab | Found Alien Artifact 31169 | -3/Lab | Identified Core Regenerator 31169 | -3/Lab | Used Core Regenerator, restored core integrity (+325) 31171 | -3/Lab | Identified Integrated Mediator 31171 | -3/Lab | Installed Integrated Mediator, increased core attachment efficiency 31177 | -3/Lab | Found Deep Network Scanner 31182 | -3/Lab | Found Prototype Device 31187 | -3/Lab | Found Prototype Energy Cannon 31192 | -3/Lab | Found Prototype Energy Gun 31203 | -3/Lab | Found Prototype Special Weapon 31224 | -3/Lab | Identified Warp Cannon 31225 | -3/Lab | Identified Tachyon Dispersion Ray 31228 | -3/Lab | Identified Gui. Remote Datajack 31229 | -3/Lab | Identified AEGIS Remote Shield 31249 | -3/Lab | Entered Research 31249 | -2/Research | Evolved 2 slots: Power x1, Propulsion x1 31250 | -2/Research | Identified exit to Quarantine 31414 | -2/Research | Spotted B-90 Cyclops 31425 | -2/Research | Destroyed B-90 Cyclops 31678 | -2/Research | Entered Quarantine 31751 | -2/Quarantine | Found Alien Artifact 31751 | -2/Quarantine | Identified Dimensional Node Initializer 31751 | -2/Quarantine | Initialized slip node 31763 | -2/Quarantine | Cryocooling Duct disabled 31778 | -2/Quarantine | Ambient heat levels rising (+20) 31778 | -2/Quarantine | Non-combat units ordered to evacuate 31807 | -2/Quarantine | Repaired Centrium Medium Armor Plating? 32010 | -2/Quarantine | Found Exp. Signal Interpreter 32018 | -2/Quarantine | Found Alien Artifact 32021 | -2/Quarantine | Identified Subatomic Replicator 32021 | -2/Quarantine | Used Subatomic Replicator to replicate PL-3XN's Ring of Power 32024 | -2/Quarantine | Assembled PL-3XN's Obliterator 32050 | -2/Quarantine | Found Alien Impact Weapon 32120 | -2/Quarantine | Found Tesla Bomb Launcher 32157 | -2/Quarantine | Garrison activated, responded to threat 32194 | -2/Quarantine | Cryocooling Duct disabled 32209 | -2/Quarantine | Ambient heat levels rising (+20) 32209 | -2/Quarantine | Combat units ordered to evacuate 32309 | -2/Quarantine | Quarantine Guard activated 32378 | -2/Quarantine | Spotted Quarantine Guard 32386 | -2/Quarantine | Destroyed Quarantine Guard 32388 | -2/Quarantine | Destroyed Quarantine Guard 32446 | -2/Quarantine | Spotted Quarantine Guard 32467 | -2/Quarantine | Destroyed Quarantine Guard 32486 | -2/Quarantine | Destroyed Quarantine Guard 32494 | -2/Quarantine | Destroyed Quarantine Guard 32531 | -2/Quarantine | Destroyed Quarantine Guard 32571 | -2/Quarantine | Discovered new exit (range 13) 32571 | -2/Quarantine | Spotted Quarantine Guard 32574 | -2/Quarantine | Destroyed Quarantine Guard 32580 | -2/Quarantine | Identified exit to Access 32635 | -2/Quarantine | Spotted Quarantine Guard 32643 | -2/Quarantine | Destroyed Quarantine Guard 32654 | -2/Quarantine | Spotted Quarantine Guard 32705 | -2/Quarantine | Destroyed Quarantine Guard 32779 | -2/Quarantine | Destroyed Quarantine Guard 32795 | -2/Quarantine | Build established: Trapper-Scout 32841 | -2/Quarantine | Warped through subspace to slip node 32845 | -2/Quarantine | Found Alien Artifact 32845 | -2/Quarantine | Identified Hpw. Transdimensional Reconstructor 32845 | -2/Quarantine | Warped through subspace to slip node 32849 | -2/Quarantine | Found Transdimensional Reconstructor 32849 | -2/Quarantine | Warped through subspace to slip node 32853 | -2/Quarantine | Found Dimensional Node Initializer 32858 | -2/Quarantine | Identified Core Stripper 32859 | -2/Quarantine | Found Transdimensional Reconstructor 32866 | -2/Quarantine | Found Transdimensional Reconstructor 32957 | -2/Quarantine | Spotted Fortress 32977 | -2/Quarantine | Destroyed Fortress 32985 | -2/Quarantine | Found Prototype Device 32985 | -2/Quarantine | Identified Exp. Force Field 32988 | -2/Quarantine | Found Prototype Device 32988 | -2/Quarantine | Identified Thermal Barrier 33002 | -2/Quarantine | Found Prototype Protection 33002 | -2/Quarantine | Identified Centrium Heavy Armor Plating 33016 | -2/Quarantine | Found Vortex Chain Reactor 33135 | -2/Quarantine | Discovered new exit (range 15) 33135 | -2/Quarantine | Spotted Quarantine Guard 33139 | -2/Quarantine | Discovered new exit (range 16) 33139 | -2/Quarantine | Spotted Quarantine Guard 33139 | -2/Quarantine | Destroyed Quarantine Guard 33147 | -2/Quarantine | Destroyed Quarantine Guard 33162 | -2/Quarantine | Identified exit to Section 7 33164 | -2/Quarantine | Identified exit to Protoforge 33581 | -2/Quarantine | Entered Protoforge 33775 | -2/Protoforge | Discovered exit to Access (range 4) 33777 | -2/Protoforge | Initialized slip node 33857 | -2/Protoforge | Warp Cannon suddenly broke down 33922 | -2/Protoforge | Spotted Hotshot 33924 | -2/Protoforge | Spotted Hotshot 33926 | -2/Protoforge | Spotted Hotshot 33933 | -2/Protoforge | Destroyed Hotshot 33995 | -2/Protoforge | Superfortress began startup sequence 34004 | -2/Protoforge | Destroyed Hotshot 34037 | -2/Protoforge | Spotted Striker 34044 | -2/Protoforge | Additional patrols dispatched to research labs 34046 | -2/Protoforge | Spotted Immortal 34049 | -2/Protoforge | Spotted Immortal 34053 | -2/Protoforge | Destroyed Striker 34066 | -2/Protoforge | Found Prototype Device 34077 | -2/Protoforge | Found Prototype Protection 34077 | -2/Protoforge | Identified Cep. Core Shell 34086 | -2/Protoforge | Spotted Decapitator 34091 | -2/Protoforge | Spotted Decapitator 34101 | -2/Protoforge | Destroyed Decapitator 34103 | -2/Protoforge | Destroyed Decapitator 34125 | -2/Protoforge | Destroyed Immortal 34125 | -2/Protoforge | Destroyed Immortal 34157 | -2/Protoforge | Found Prototype Processor 34164 | -2/Protoforge | Lost 13 parts (4p5n4u) 34206 | -2/Protoforge | Found Prototype Protection 34206 | -2/Protoforge | Identified Cep. RG22 Armor 34209 | -2/Protoforge | Found Cep. RG22 Armor 34279 | -2/Protoforge | Identified Exp. Cloaking Device 34281 | -2/Protoforge | Identified Exp. Melee Analysis Suite 34299 | -2/Protoforge | Destroyed Decapitator 34299 | -2/Protoforge | Destroyed Decapitator 34299 | -2/Protoforge | Destroyed Decapitator 34299 | -2/Protoforge | Spotted Decapitator 34305 | -2/Protoforge | Destroyed Decapitator 34329 | -2/Protoforge | Found Prototype Hover Unit 34329 | -2/Protoforge | Identified Cep. Combat Aerolev Unit 34331 | -2/Protoforge | First assault squad dispatched 34335 | -2/Protoforge | Found Prototype Hover Unit 34335 | -2/Protoforge | Identified Cep. Gyrokinetic System 34341 | -2/Protoforge | Spotted Decapitator 34362 | -2/Protoforge | Spotted Decapitator 34387 | -2/Protoforge | Core integrity fell below 50% 34387 | -2/Protoforge | Destroyed Decapitator 34389 | -2/Protoforge | Destroyed Decapitator 34391 | -2/Protoforge | Found Prototype Slashing Weapon 34391 | -2/Protoforge | Identified Exp. Terror Saw 34467 | -2/Protoforge | Found Cep. Gyrokinetic System 34493 | -2/Protoforge | Found Prototype Device 34493 | -2/Protoforge | Identified Exp. Shield Generator 34515 | -2/Protoforge | Found Cep. Gyrokinetic System 34616 | -2/Protoforge | Spotted Immortal 34616 | -2/Protoforge | Spotted Immortal 34635 | -2/Protoforge | Destroyed Immortal 34651 | -2/Protoforge | Destroyed Immortal 34695 | -2/Protoforge | Found Corrupted Prototype Piercing Weapon 34695 | -2/Protoforge | Identified Exp. Jetlance 34696 | -2/Protoforge | Found Cep. Core Shell 34699 | -2/Protoforge | Destroyed 7 combat bots 34796 | -2/Protoforge | Spotted V415-f 34807 | -2/Protoforge | Destroyed V415-f 34824 | -2/Protoforge | Found Prototype Slashing Weapon 34824 | -2/Protoforge | Identified Cep. Deflector Sword 34826 | -2/Protoforge | Found Prototype Ballistic Cannon 34826 | -2/Protoforge | Identified Cep. Helical Railcannon 34831 | -2/Protoforge | Found Prototype Energy Cannon 34831 | -2/Protoforge | Identified Cep. Plasma Driver 34834 | -2/Protoforge | Found Prototype Energy Gun 34834 | -2/Protoforge | Identified Cep. Lightning Penetrator 34836 | -2/Protoforge | Found Prototype Energy Gun 34836 | -2/Protoforge | Identified Cep. Variable Chargecaster 34840 | -2/Protoforge | Found Exp. Jetlance 34858 | -2/Protoforge | Spotted V531-v 34858 | -2/Protoforge | Spotted V633-e 34858 | -2/Protoforge | Spotted V797-l 34874 | -2/Protoforge | Destroyed V633-e 34875 | -2/Protoforge | Destroyed V531-v 34897 | -2/Protoforge | Destroyed V797-l 34900 | -2/Protoforge | Found Cep. Gyrokinetic System 34904 | -2/Protoforge | Found Prototype Storage 34904 | -2/Protoforge | Identified Cep. Chromion Battery 34912 | -2/Protoforge | Found Adv. Powered Armor 34923 | -2/Protoforge | Found Cep. Combat Aerolev Unit 34931 | -2/Protoforge | Found Cep. Lightning Penetrator 34938 | -2/Protoforge | Found Cep. Plasma Driver 35022 | -2/Protoforge | Destroyed 7 combat bots 35103 | -2/Protoforge | Found Prototype Device 35103 | -2/Protoforge | Identified Cep. Countertargeting System 35106 | -2/Protoforge | Found Prototype Device 35106 | -2/Protoforge | Identified Exp. Force Booster 35111 | -2/Protoforge | Found Prototype Device 35111 | -2/Protoforge | Identified Cep. Networked Targeting System 35114 | -2/Protoforge | Found Prototype Device 35114 | -2/Protoforge | Identified Femtoactuators 35116 | -2/Protoforge | Found Prototype Device 35116 | -2/Protoforge | Identified Exp. Kinecellerator 35119 | -2/Protoforge | Found Prototype Device 35119 | -2/Protoforge | Identified Cep. Recoil Nullifier 35142 | -2/Protoforge | Found Femtoactuators 35144 | -2/Protoforge | Found Prototype Device 35144 | -2/Protoforge | Identified Mni. Quantum Capacitor 35149 | -2/Protoforge | Found Femtoactuators 35161 | -2/Protoforge | Found Prototype Processor 35161 | -2/Protoforge | Identified Cep. Melee Reflex Suite 35239 | -2/Protoforge | Found Alien Artifact 35239 | -2/Protoforge | Identified Cep. Nanofilaments [Endoweave] 35239 | -2/Protoforge | Installed Cep. Nanofilaments [Endoweave], 5 resistances modified: KI +10%, TH +10%, EX -50%, S -20%, P +20% 35246 | -2/Protoforge | Found Transdimensional Reconstructor 35324 | -2/Protoforge | Spotted AP7-3 35324 | -2/Protoforge | Spotted AP7-3 35347 | -2/Protoforge | Destroyed AP7-3 35364 | -2/Protoforge | Destroyed AP7-3 35396 | -2/Protoforge | PL-3XN's Obliterator vaporized one of its rings 35397 | -2/Protoforge | Scanned by Researcher 35421 | -2/Protoforge | Found Prototype Device 35421 | -2/Protoforge | Identified Cep. Thermoelectric Network 35424 | -2/Protoforge | Found Prototype Device 35424 | -2/Protoforge | Identified Cep. Cloak Mesh 35426 | -2/Protoforge | Found Prototype Device 35426 | -2/Protoforge | Identified Cep. Impact Drone Bay 35429 | -2/Protoforge | Found Prototype Processor 35429 | -2/Protoforge | Identified Cep. Core Analysis Suite 35436 | -2/Protoforge | Found Cep. Core Analysis Suite 35443 | -2/Protoforge | Found Cep. Impact Drone Bay 35448 | -2/Protoforge | Warped through subspace to slip node 35454 | -2/Protoforge | Spotted Hotshot 35455 | -2/Protoforge | Entered Access 35455 | -1/Access | Evolved 2 slots: Utility x2 35705 | -1/Access | First assault squad dispatched 35940 | -1/Access | Found Prototype Device 35940 | -1/Access | Identified Exp. Shock Absorption System 35950 | -1/Access | Found Prototype Launcher 35950 | -1/Access | Identified Enh. Gamma Bomb Array 35980 | -1/Access | Found Ghost Barrier 36059 | -1/Access | Scrapoids reinforcements arrived? 36066 | -1/Access | Garrison activated, responded to threat 36080 | -1/Access | Discovered new exit (range 8) 36097 | -1/Access | Lost 3 allies 36327 | -1/Access | Build established: Scavenger-Scout 36540 | -1/Access | Unchained authorized (V4-D3R) 36828 | -1/Access | Identified exit to Command 36950 | -1/Access | PL-3XN's Obliterator suddenly exploded 36950 | -1/Access | Spotted B-99 Colossus 36950 | -1/Access | Spotted B-99 Colossus 36962 | -1/Access | Entered Command 36993 | -1/Command | Lost 9 parts (2p1n5u1w) 37010 | -1/Command | Spotted B-99 Colossus 37072 | -1/Command | Spotted M Guard 37073 | -1/Command | Spotted M Guard 37093 | -1/Command | Found Hvy. Reflective Plating 37097 | -1/Command | Spotted Combat Programmer 37097 | -1/Command | Spotted Combat Programmer 37159 | -1/Command | Met MAIN.C 37164 | -1/Command | 0b10 Conduit disabled 37190 | -1/Command | Destroyed MAIN.C Shell 37192 | -1/Command | MAIN.C activated Command garrisons 37207 | -1/Command | Found Centrium Heavy Armor Plating 37243 | -1/Command | Destroyed M Guard 37256 | -1/Command | System corruption reached 10% 37275 | -1/Command | Destroyed Combat Programmer 37283 | -1/Command | Allies destroyed Combat Programmer 37284 | -1/Command | Lost 4 parts (3p1u) 37301 | -1/Command | Allies destroyed M Guard 37301 | -1/Command | All MAIN.C guards destroyed 37307 | -1/Command | Destroyed MAIN.C 37308 | -1/Command | Discovered new exit (range 44) 37308 | -1/Command | Discovered new exit (range 88) 37308 | -1/Command | Extracted map data and part IDs from MAIN.C's data core 37317 | -1/Command | Lost 7 allies 37397 | -1/Command | Found Exp. System Purifier 37407 | -1/Command | Found Exp. Phase Shifter 37835 | -1/Command | Build established: Scavenger-Mutant 38172 | -1/Command | Found Zero-point Reactor 38174 | -1/Command | Found Zero-point Reactor 38197 | -1/Command | Found Perforator 38202 | -1/Command | Found Exp. Melee Analysis Suite 38389 | -1/Command | Build established: Mutant 38425 | -1/Command | Found Exp. Core Analyzer 39364 | -1/Command | Build established: Scavenger-Mutant 40542 | -1/Command | Warped through subspace to slip node 40542 | -1/Command | Discovered new exit (range 4) 40548 | -1/Command | Entered Access_0 40549 | -1/Access_0 | Met Architect 40555 | -1/Access_0 | Architect warped through subspace 40564 | -1/Access_0 | Allies destroyed A8 40617 | -1/Access_0 | Found Exp. Phase Shifter 40633 | -1/Access_0 | Architect warped through subspace 40649 | -1/Access_0 | Subspace Access Node disabled 40672 | -1/Access_0 | Architect warped through subspace 40693 | -1/Access_0 | Found Exp. Weapon Cycler 40705 | -1/Access_0 | Architect warped through subspace 40754 | -1/Access_0 | Architect warped through subspace 40768 | -1/Access_0 | Found Exp. Phase Shifter 40773 | -1/Access_0 | A6 warped into view 40778 | -1/Access_0 | Architect warped through subspace 40789 | -1/Access_0 | Allies destroyed A6 40800 | -1/Access_0 | Architect warped through subspace 40813 | -1/Access_0 | Build established: Scavenger-Gladiator 40819 | -1/Access_0 | Subspace Access Node disabled 40837 | -1/Access_0 | Subspace Access Node disabled 40874 | -1/Access_0 | Architect warped through subspace 40885 | -1/Access_0 | A5 warped into view 40888 | -1/Access_0 | Allies destroyed A5 40899 | -1/Access_0 | Architect warped through subspace 40927 | -1/Access_0 | Subspace Access Node disabled 40997 | -1/Access_0 | Core integrity fell below 50% 41016 | -1/Access_0 | Lost 6 parts (1p1n4u) 41029 | -1/Access_0 | Destroyed Architect 41030 | -1/Access_0 | Architect triggered a singularity event 41031 | -1/Access_0 | Extracted unknown sensor trigger ID from Architect's data core 41032 | -1/Access_0 | Warped through subspace to slip node 41032 | -1/Access_0 | Discovered new exit (range 8) 41040 | *** | Escaped singularity! Last Messages --------------- singularity event. Goodbye. 41030_ Acquired 10 matter. 41031_ A0_COM: 10. 41031_ Acquired data core, extracted unknown sensor trigger ID. 41032_ A0_COM: 9. 41032_ Warped through subspace, drawn to slip node. 41032_ EXIT=FOUND 41033_ A0_COM: 8. 41034_ A0_COM: 7. 41035_ A0_COM: 6. 41036_ A0_COM: 5. 41037_ A0_COM: 4. 41038_ A0_COM: 3. 41038_ Dimensional Slip Node implodes. 41039_ A0_COM: 2. 41039_ The unstable cave ceiling collapses. 41040_ A0_COM: 1. 41040_ The unstable cave ceiling collapses. Map ----- +----------------------------------------------------+ | | | | | | | | | | | | | | | | | | | | | | | | | | | | | | | | | ?????????????????????????????????????????????????? | | ?????????????????????????????????????????????????? | | ?????????????????????????????????????????????????? | | ?????????????????????????????????????????????????? | | ?????????????????????????????????????????????????? | | ?????????????????????????????????????????????????? | | ????????????????????????###??????????????????????? | | ???????????????????????## ##?????????????????????? | | ???????????????????????# #?????????????????????? | | ???????????????????????# @ #?????????????????????? | | ??????????????????????## #?????????????????????? | | ?????????????????????# #?????????????????????? | | ???????????????????# ????????????????????? | | ???????????????????# # #???????????????????? | | ??????????????????# #??????????????????? | | ??????????????????# #??????????????????? | | ??????????????????# # #??????????????????? | | ??????????????????# #??????????????????? | | ??????????????????# #??????????????????? | | ??????????????????## ##??????????????????? | | ???????????????????# #???????????????????? | | ???????????????????### #???????????????????? | | ?????????????????????### ####???????????????????? | | ???????????????????????###???????????????????????? | | ?????????????????????????????????????????????????? | | ?????????????????????????????????????????????????? | | ?????????????????????????????????????????????????? | | ?????????????????????????????????????????????????? | | ?????????????????????????????????????????????????? | | ?????????????????????????????????????????????????? | | ?????????????????????????????????????????????????? | | ?????????????????????????????????????????????????? | | ?????????????????????????????????????????????????? | | ?????????????????????????????????????????????????? | +----------------------------------------------------+ Best States ------------- Heat Dissipation 101 Energy Generation 82 Energy Capacity 1470 Matter Stores 798 Matter Capacity 800 Sight Range 24 Robot Scan Range 18 Terrain Scan Range 24 Terrain Scan Density 210 ECM Strength 2 Jamming Range 16 Cloak Strength 4 Additional Mass Support 16 Corruption Containment 12 Corruption Block 20 Armor Coverage 1600 Resistance: KI 30 Resistance: TH 50 Resistance: EX 25 Resistance: EM 75 Resistance: P 20 Core Shielding 90 Utility Shielding 66 Weapon Shielding 90 Point Defense Rating 80 Weapon Cycling 30 Melee Speed Boost 50 Phase Shifting 20 Evasion (%) 90 Targeting Accuracy 20 Melee Accuracy 12 Core Analysis 15 Recoil Reduction 6 Force Boost 20 Offensive Hacking 52 Defensive Hacking 28 Authchip Count 2 Trap Extractor Capacity 8 Item Schematics ----------------- Hcp. Storage Unit | -10/Materials | Hacked Mak. Light Armor Plating | -6/Factory | Extrapolated Beamcaster | -6/Factory | Extrapolated Deep Structural Scanner | -6/Factory | Extrapolated Adv. Trap Extractor | -6/Hub_04(d) | Hacked Assault Drone Bay | -5/Zhirov | Free Exp. Heat Sink | -5/Zhirov | Free Exp. Optical Array | -5/Zhirov | Free Imp. Arc Thrower | -5/Zhirov | Free Antigrav Array | -4/Factory | Hacked CPS Tube | -4/Factory | Scanalyzed Exp. EM Shield | -4/Factory | Hacked Cmb. Linear Gravjet | -3/Research | Scanalyzed Centrium Medium Armor Plating | -3/Research | Scanalyzed Centrium Heavy Treads | -2/Protoforge | Archive Robot Schematics ------------------ P-70 Sage | -4/Factory | Hacked Fabricated ------------ Adv. Trap Extractor | x2 | -5/Factory | Authchip Exp. EM Shield | x1 | -4/Factory Repaired ---------- Antigrav Array | 5% | -5/Factory Antigrav Array | 27% | -4/Factory Centrium Medium Armor Plating | 21% | -2/Quarantine Studied --------- Lgt. Ion Engine | -6/Factory | Hacked Xenon Bombardment Thruster | -6/Factory | Hacked VTOL Module | -6/Factory | Hacked Antigrav Array | -4/Factory | Hacked Imp. Antigrav System | -4/Factory | Hacked Lgt. Antimatter Reactor | -4/Factory | Hacked Matter Neutralizer | -4/Factory | Hacked Imp. Gyrokinetic Inverter | -4/Factory | Hacked Cmb. Linear Gravjet | -3/Research | Hacked Mic. Antimatter Reactor | -3/Research | Hacked Particle Reactor | -3/Research | Hacked Hvy. Machine Gun | -3/Research | Hacked Quantum Reactor | -2/Research | Hacked Lgt. Quantum Reactor | -1/Access | Hacked Alien Tech Used ----------------- Integrated Dissipator Transdimensional Reconstructor Core Regenerator Integrated Mediator Dimensional Node Initializer Subatomic Replicator High-powered Transdimensional Reconstructor Core Stripper Concept Nanofilaments [Endoweave] Achievements -------------- Cool Guys Weapon Of Power Challenges ------------ None Game ------ Seed BarrageGammaCleaver Manual? 0 Play Time 13:59:53 Cumulative 1639.1 hours Start 2026.06.14 @ 14:05:43 End 2026.06.21 @ 02:21:32 Sessions 3 Manual Loads 0 Difficulty Rogue Special Mode None Game No. 508 Rogue 501 Adventurer 4 Explorer 3 Win Type 6 Total 61 Types 28/8/3/4/1/4/6/2/3/2 Lore% 98 Gallery% 96 Achievement% 90 Wizard Run 0 Options --------- Layout 2 ASCII 0 Keyboard 0 Movement Numpad Keybinds 0 Fullscreen 2 Font 24/Smallcaps Map View 50x44 Zoom Use 0% Tactical HUD 1 Map Filters NONE Filters NONE Steam 1 RUN: 3e81c45a-ce91-4253-8a8d-625627436913